{"text_format":"1","workbook":"xlsx","n_sheets":15,"sheets":["Pagina iniziale","Istruzioni","Bilancio annuale","Gennaio","Febbraio","Marzo","Aprile","Maggio","Giugno","Luglio","Agosto","Settembre","Ottobre","Novembre","Dicembre"],"not_rendered":{"charts":1,"images":2,"macros":0,"external_links":0,"defined_names":28,"comments":12,"pivot_tables":0},"unopened":[],"bounds":{"document_bytes":16777216,"sheet_cells":100000,"rows_first":2000,"rows_last":500,"rows_between":2000,"halvings":0,"cell_chars":16384,"cell_head_chars":4096},"cells_cut":0,"cells_raw":0,"read":"whole","date_system":"1900"}

{"sheet":"Pagina iniziale","index":0,"n_rows":15,"n_cols":2,"rows_kept":15,"cut":false,"hidden":false,"merged":[[14,1,34,4],[10,2,10,4],[12,2,12,4]]}
[]
[]
[]
[]
[]
[]
[]
[]
[null,"Il mio/nostro libro contabile"]
[]
[null,"nome/famiglia:"]
[]
[null,"anno:"]
[]
[null,"Cari lettrici e lettori,\n\ngestire bene i soldi in famiglia é come gestire una piccola impresa. Per conoscere la propria situazione economica é necessario tenere una contabilitá relativa alle entrate e alle uscite come si fa in un'azienda. Un libro contabile che annoti tutte le uscite e le entrate puó rivelarsi uno strumento di controllo e di pianificazione utlie e necessario.\n\nSempre piú persone e famiglie sentono il bisogno di controllare la loro situazione economica e di capire dove vanno a finire i loro soldi ed evitare cosí una cirisi finanziaria anche nel futuro.\n\nTrascrivere tutte le spese ogni giorno in un libro contabile richiede un po' di impegno, ma ne vale la pena! Compilando un libro contabile ci si puó rendere conto dove viene speso troppo ed é cosí possibile pianificare meglio i bisogni e il futuro.\n\nCon l'augurio di diventare degli \"amministratori\" sempre piú bravi del vostro denaro, vi saluta \n\nil team della consulenza budget\n"]

{"sheet":"Istruzioni","index":1,"n_rows":9,"n_cols":9,"rows_kept":9,"cut":false,"hidden":false,"merged":[[5,1,6,7],[8,1,41,6],[8,8,41,13]]}
[]
[]
[]
[]
[]
[null,"Funziona così\nIstruzioni e consigli"]
[]
[]
[null,"1. Registrare le spese variabili\nRegistrate ogni mese tutte le spese variabili divisi per settori. L'ideale sarebbe raccogliere ogni giorno gli scontrini ed inserire le somme la sera stessa nella versione Excel. Non fate passare troppo tempo tra una spesa e l'altra ad inserire le somme nella vostra lista Excel, altrimenti rischiate di dimenticare le spese effettuate. \n\n2. Registrare le spese fisse\nRegistrate ogni mese tutte le spese fisse, anche esse divisi per settori. Sotto spese fisse intendiamo quelle spese che avete ogni mese dell'anno. Se una spesa fissa, p.e. le spese condominiali vengono pagati solamente una volta all'anno, dividete per 12 mesi e inserite la quota mensile nel apposito spazio, oppure se avete spese che pagate ogni sei mesi, dividete per sei ed inserite l'importo equivalente. \n\nSpese extra e saltuarie, come una macchina nuovo, un trasloco, la ristrutturazione della casa ecc. si possono inserire nell'apposita tabella sulla pagina \"bilancio annuale\". \n\n3. Registrare le entrate \nRegistrate ogni mese tutte le entrate fisse come stipendio al \"netto\" delle persone che vivono all'interno dello stesso nucleo familiare, i pagamenti statali ecc.\n",null,null,null,null,null,null,"4. Bilancio annuale\nTrascrivere tutte le spese ogni giorno in un libro contabile richiede impegno e così il servizio consulenza debitori ha pensato di creare una versione Excel. In questo modo tutto diventa più facile, le somme vengono calcolate in automatico e la visione completa delle entrate ed uscite è più concreta.\n \n5. Stampe\nPotete stampare le vostre pagine della versione Excel e riportarle in una mappa per avere un accesso veloce alle vostre entrate ed uscite.\n\n6. Cambiamenti/aggiornamenti\nChi lavora volentieri in Excel, ha la possibilità di modificare ed aggiornare questa versione secondo le proprie esigenze. Badate però quando togliete o aggiungete nuove voci, che anche le formule vengano aggiornate, per avere un calcolo corretto.\n\nSe avete domande oppure idee per migliorare questa versione Excel, mandateci un e-mail all'indirizzo bb@caritas.bz.it.\n\n\n\n\n\n\nCopyright/Disclaimer\nQuesta versione Excel-del libro contabile rimane a sua libera disposizione. Per qualsiasi utilizzo ai fini commerciali necessitá il consenso degli autori.\n"]

{"sheet":"Bilancio annuale","index":2,"n_rows":81,"n_cols":16,"rows_kept":81,"cut":false,"hidden":false,"merged":[[94,10,94,14],[79,10,80,14],[81,10,81,14],[82,10,82,14],[83,10,83,14],[84,10,84,14],[85,10,85,14],[86,10,86,14],[87,10,87,14],[88,10,88,14],[89,10,89,14],[90,10,90,14],[91,10,91,14],[92,10,92,14],[93,10,93,14],[92,2,92,5],[91,2,91,5],[94,2,94,5],[86,2,86,5],[87,2,87,5],[88,2,88,5],[89,2,89,5],[90,2,90,5],[81,2,81,5],[82,2,82,5],[83,2,83,5],[84,2,84,5],[85,2,85,5],[79,7,79,9],[79,1,80,1],[79,6,80,6],[79,2,80,5],[6,3,6,5],[6,6,7,6],[6,1,7,1],[6,2,7,2],[41,1,41,3],[73,1,76,14]]}
[]
[]
[]
[]
[null,"Bilancio annuale"]
[]
[null,"mese","entrate","uscite",null,null,"budget a disposizione/mancante"]
[null,null,null,"spese fisse","spese variabili","totale spese"]
[null,"gennaio",{"$f":"Gennaio!P99","v":0},{"$f":"Gennaio!P100","v":0},{"$f":"Gennaio!P101","v":0},{"$f":"D9+E9","v":0},{"$f":"C9-F9","v":0}]
[null,"febbraio",{"$f":"Febbraio!P99","v":0},{"$f":"Febbraio!P100","v":0},{"$f":"Febbraio!P101","v":0},{"$f":"D10+E10","v":0},{"$f":"C10-F10","v":0}]
[null,"marzo",{"$f":"Marzo!P99","v":0},{"$f":"Marzo!P100","v":0},{"$f":"Marzo!P101","v":0},0,0]
[null,"aprile",{"$f":"Aprile!P99","v":0},{"$f":"Aprile!P100","v":0},{"$f":"Aprile!P101","v":0},0,0]
[null,"maggio",{"$f":"Maggio!P99","v":0},{"$f":"Maggio!P100","v":0},{"$f":"Maggio!P101","v":0},0,0]
[null,"giugno",{"$f":"Giugno!P99","v":0},{"$f":"Giugno!P100","v":0},{"$f":"Giugno!P101","v":0},0,0]
[null,"luglio",{"$f":"Luglio!P99","v":0},{"$f":"Luglio!P100","v":0},{"$f":"Luglio!P101","v":0},0,0]
[null,"august",{"$f":"Agosto!P99","v":0},{"$f":"Agosto!P100","v":0},{"$f":"Agosto!P101","v":0},0,0]
[null,"settembre",{"$f":"Settembre!P99","v":0},{"$f":"Settembre!P100","v":0},{"$f":"Settembre!P101","v":0},0,0]
[null,"ottobre",{"$f":"Ottobre!F100","v":0},{"$f":"Ottobre!P100","v":0},{"$f":"Ottobre!P101","v":0},0,0]
[null,"novembre",{"$f":"Novembre!P99","v":0},{"$f":"Novembre!P100","v":0},{"$f":"Novembre!F102","v":0},0,0]
[null,"dicembre",{"$f":"Dicembre!P99","v":0},{"$f":"Dicembre!P100","v":0},{"$f":"Dicembre!P101","v":0},0,0]
[null,"totale",{"$f":"SUM(C9:C20)","v":0},{"$f":"SUM(D9:D20)","v":0},{"$f":"SUM(E9:E20)","v":0},{"$f":"SUM(F9:F20)","v":0},0]
[]
[]
[]
[]
[]
[]
[]
[]
[]
[]
[]
[]
[]
[]
[]
[]
[]
[]
[]
[]
[null,"Distinta costi"]
[]
[null,null,"gennaio","febbraio","marzo","aprile","maggio","giugno","luglio","agosto","settembre","ottobre","novembre","dicembre","totale","media al mese"]
[null,"abitare",{"$f":"Gennaio!H58+Gennaio!Q42","v":0},{"$f":"Febbraio!H58+Febbraio!Q42","v":0},{"$f":"Marzo!H58+Marzo!Q42","v":0},{"$f":"Aprile!H58+Aprile!Q42","v":0},{"$f":"Maggio!H58+Maggio!Q42","v":0},{"$f":"Giugno!H58+Giugno!Q42","v":0},{"$f":"Luglio!H58+Luglio!Q42","v":0},{"$f":"Agosto!H58+Agosto!L45","v":0},{"$f":"Settembre!H58+Settembre!Q42","v":0},{"$f":"Ottobre!H58+Ottobre!Q42","v":0},{"$f":"Novembre!H58+Novembre!Q42","v":0},{"$f":"Dicembre!H58+Dicembre!Q42","v":0},{"$f":"SUM(C45:N45)","v":0},{"$f":"O45/12","v":0}]
[null,"spese di \nmantenimento",{"$f":"Gennaio!E42","v":0},{"$f":"Febbraio!E42","v":0},{"$f":"Marzo!E42","v":0},{"$f":"Aprile!E42","v":0},{"$f":"Maggio!E42","v":0},{"$f":"Giugno!E42","v":0},{"$f":"Luglio!E42","v":0},{"$f":"Agosto!E42","v":0},{"$f":"Settembre!E42","v":0},{"$f":"Ottobre!E42","v":0},{"$f":"Novembre!E42","v":0},{"$f":"Dicembre!E42","v":0},{"$f":"SUM(C46:N46)","v":0},{"$f":"O46/12","v":0}]
[null,"mobilità",{"$f":"Gennaio!M42+Gennaio!H67+Gennaio!H70","v":0},{"$f":"Febbraio!M42+Febbraio!H67+Febbraio!H70","v":0},{"$f":"Marzo!M42+Marzo!H67+Marzo!H70","v":0},{"$f":"Aprile!M42+Aprile!H67+Aprile!H70","v":0},{"$f":"Maggio!M42+Maggio!H67+Maggio!H70","v":0},{"$f":"Giugno!M42+Giugno!H67+Giugno!H70","v":0},{"$f":"Luglio!M42+Luglio!H67+Luglio!H70","v":0},{"$f":"Agosto!M42+Agosto!H67+Agosto!H70","v":0},{"$f":"Settembre!M42+Settembre!H67+Settembre!H70","v":0},{"$f":"Ottobre!M42+Ottobre!H67+Ottobre!H70","v":0},{"$f":"Novembre!M42+Novembre!H67+Novembre!H70","v":0},{"$f":"Dicembre!M42+Dicembre!H67+Dicembre!H70","v":0},0,0]
[null,"comunicazione",{"$f":"Gennaio!H76","v":0},{"$f":"Febbraio!H76","v":0},{"$f":"Marzo!H76","v":0},{"$f":"Aprile!H76","v":0},{"$f":"Maggio!H76","v":0},{"$f":"Giugno!H76","v":0},{"$f":"Luglio!H76","v":0},{"$f":"Agosto!H76","v":0},{"$f":"Settembre!H76","v":0},{"$f":"Ottobre!H76","v":0},{"$f":"Novembre!H76","v":0},{"$f":"Dicembre!H76","v":0},0,0]
[null,"assicurazione",{"$f":"Gennaio!H85","v":0},{"$f":"Febbraio!H85","v":0},{"$f":"Marzo!H85","v":0},{"$f":"Aprile!H85","v":0},{"$f":"Maggio!H85","v":0},{"$f":"Giugno!H85","v":0},{"$f":"Luglio!H85","v":0},{"$f":"Agosto!H85","v":0},{"$f":"Settembre!H85","v":0},{"$f":"Ottobre!H85","v":0},{"$f":"Novembre!H85","v":0},{"$f":"Dicembre!H85","v":0},0,0]
[null,"risparmio",{"$f":"Gennaio!O54","v":0},{"$f":"Febbraio!O54","v":0},{"$f":"Marzo!O54","v":0},{"$f":"Aprile!O54","v":0},{"$f":"Maggio!O54","v":0},{"$f":"Giugno!O54","v":0},{"$f":"Luglio!O54","v":0},{"$f":"Agosto!O54","v":0},{"$f":"Settembre!O54","v":0},{"$f":"Ottobre!O54","v":0},{"$f":"Novembre!O54","v":0},{"$f":"Dicembre!O54","v":0},0,0]
[null,"abbonamenti",{"$f":"Gennaio!O61","v":0},{"$f":"Febbraio!O61","v":0},{"$f":"Marzo!O61","v":0},{"$f":"Aprile!O61","v":0},{"$f":"Maggio!O61","v":0},{"$f":"Giugno!O61","v":0},{"$f":"Luglio!O61","v":0},{"$f":"Agosto!O61","v":0},{"$f":"Settembre!O61","v":0},{"$f":"Ottobre!O61","v":0},{"$f":"Novembre!O61","v":0},{"$f":"Dicembre!O61","v":0},0,0]
[null,"imposte/tributi",{"$f":"Gennaio!O66","v":0},{"$f":"Febbraio!O66","v":0},{"$f":"Marzo!O66","v":0},{"$f":"Aprile!O66","v":0},{"$f":"Maggio!O66","v":0},{"$f":"Giugno!O66","v":0},{"$f":"Luglio!O66","v":0},{"$f":"Agosto!O66","v":0},{"$f":"Settembre!O66","v":0},{"$f":"Ottobre!O66","v":0},{"$f":"Novembre!O66","v":0},{"$f":"Dicembre!O66","v":0},0,0]
[null,"bambini",{"$f":"Gennaio!O75","v":0},{"$f":"Febbraio!O75","v":0},{"$f":"Marzo!O75","v":0},{"$f":"Aprile!O75","v":0},{"$f":"Maggio!O75","v":0},{"$f":"Giugno!O75","v":0},{"$f":"Luglio!O75","v":0},{"$f":"Agosto!O75","v":0},{"$f":"Settembre!O75","v":0},{"$f":"Ottobre!O75","v":0},{"$f":"Novembre!O75","v":0},{"$f":"Dicembre!O75","v":0},0,0]
[null,"debiti",{"$f":"Gennaio!O82","v":0},{"$f":"Febbraio!O82","v":0},{"$f":"Marzo!O82","v":0},{"$f":"Aprile!O82","v":0},{"$f":"Maggio!O82","v":0},{"$f":"Giugno!O82","v":0},{"$f":"Luglio!O82","v":0},{"$f":"Agosto!O82","v":0},{"$f":"Settembre!O82","v":0},{"$f":"Ottobre!O82","v":0},{"$f":"Novembre!O82","v":0},{"$f":"Dicembre!O82","v":0},0,0]
[null,"abbigliamento",{"$f":"Gennaio!G42","v":0},{"$f":"Febbraio!G42","v":0},{"$f":"Marzo!G42","v":0},{"$f":"Aprile!G42","v":0},{"$f":"Maggio!G42","v":0},{"$f":"Giugno!G42","v":0},{"$f":"Luglio!G42","v":0},{"$f":"Agosto!G42","v":0},{"$f":"Settembre!G42","v":0},{"$f":"Ottobre!G42","v":0},{"$f":"Novembre!G42","v":0},{"$f":"Dicembre!G42","v":0},0,0]
[null,"salute",{"$f":"Gennaio!I42","v":0},{"$f":"Febbraio!I42","v":0},{"$f":"Marzo!I42","v":0},{"$f":"Aprile!I42","v":0},{"$f":"Maggio!I42","v":0},{"$f":"Giugno!I42","v":0},{"$f":"Luglio!I42","v":0},{"$f":"Agosto!I42","v":0},{"$f":"Settembre!I42","v":0},{"$f":"Ottobre!I42","v":0},{"$f":"Novembre!I42","v":0},{"$f":"Dicembre!I42","v":0},0,0]
[null,"sociale e \ncultura",{"$f":"Gennaio!K42","v":0},{"$f":"Febbraio!K42","v":0},{"$f":"Marzo!K42","v":0},{"$f":"Aprile!K42","v":0},{"$f":"Maggio!K42","v":0},{"$f":"Giugno!K42","v":0},{"$f":"Luglio!K42","v":0},{"$f":"Agosto!K42","v":0},{"$f":"Settembre!K42","v":0},{"$f":"Ottobre!K42","v":0},{"$f":"Novembre!K42","v":0},{"$f":"Dicembre!K42","v":0},0,0]
[null,"spese \npersonali",{"$f":"Gennaio!O42","v":0},{"$f":"Febbraio!O42","v":0},{"$f":"Marzo!O42","v":0},{"$f":"Aprile!O42","v":0},{"$f":"Maggio!O42","v":0},{"$f":"Giugno!O42","v":0},{"$f":"Luglio!O42","v":0},{"$f":"Agosto!O42","v":0},{"$f":"Settembre!O42","v":0},{"$f":"Ottobre!O42","v":0},{"$f":"Novembre!O42","v":0},{"$f":"Dicembre!O42","v":0},0,0]
[null,"altro",{"$f":"Gennaio!O86","v":0},{"$f":"Febbraio!O86","v":0},{"$f":"Marzo!O86","v":0},{"$f":"Aprile!O86","v":0},{"$f":"Maggio!O86","v":0},{"$f":"Giugno!O86","v":0},{"$f":"Luglio!O86","v":0},{"$f":"Agosto!O86","v":0},{"$f":"Settembre!O86","v":0},{"$f":"Ottobre!O86","v":0},{"$f":"Novembre!O86","v":0},{"$f":"Dicembre!O86","v":0},0,0]
[null,{"$f":"Gennaio!R8","v":"totale"},{"$f":"SUM(C45:C59)","v":0},{"$f":"SUM(D45:D59)","v":0},0,0,{"$f":"SUM(G45:G59)","v":0},0,0,0,0,0,0,0,0,0]
[]
[]
[]
[]
[]
[]
[]
[]
[]
[]
[]
[null,"Spese extra"]
[]
[null,"È meglio non includere spese extra (come l'acquisto di una macchina, ristrutturazione della casa ecc.) nel budget famigliare mensile perchè aumenterebbe troppo queste spese e falsificherebbe il calcolo.\n\nLe eventuali rate per l'investimento vanno inserite nella relativa casella delle spese mensili (\"abitazione - rate per la casa\" oppure \"debiti - rate\")."]
[]
[]
[]
[]
[]
[null,"data","descrizione",null,null,null,"importo","finanziato tramite",null,null,"annotazione"]
[null,null,null,null,null,null,null,"conto \ncorrente","libretto","prestito"]

{"sheet":"Gennaio","index":3,"n_rows":112,"n_cols":18,"rows_kept":112,"cut":false,"hidden":false,"merged":[[97,6,97,7],[98,6,98,7],[99,6,99,7],[100,6,100,7],[101,6,101,7],[7,3,7,4],[107,6,107,7],[108,6,108,7],[109,6,109,7],[64,4,64,6],[65,4,65,6],[68,2,69,3],[71,2,75,3],[55,4,55,6],[56,4,56,6],[7,2,8,2],[54,4,54,6],[110,6,110,7],[111,6,111,7],[102,6,102,7],[103,6,103,7],[104,6,104,7],[105,6,105,7],[106,6,106,7],[111,2,111,5],[57,4,57,6],[77,2,84,3],[84,4,84,6],[77,4,77,6],[78,4,78,6],[80,4,80,6],[81,4,81,6],[82,4,82,6],[83,4,83,6],[94,6,94,7],[95,6,95,7],[96,6,96,7],[59,2,66,3],[60,4,60,6],[63,4,63,6],[62,4,62,6],[100,11,100,14],[101,11,101,14],[88,15,89,17],[83,9,85,10],[85,11,85,13],[83,11,83,13],[84,11,84,13],[81,17,83,18],[76,9,81,10],[81,11,81,13],[76,11,76,13],[77,11,77,13],[78,11,78,13],[79,11,79,13],[80,11,80,13],[94,11,95,14],[98,11,98,14],[99,11,99,14],[98,15,98,16],[99,15,99,16],[100,15,100,16],[101,15,101,16],[62,9,65,10],[65,11,65,13],[62,11,62,13],[63,11,63,13],[64,11,64,13],[67,9,74,10],[68,4,68,6],[93,6,93,7],[74,11,74,13],[67,11,67,13],[68,11,68,13],[69,11,69,13],[70,11,70,13],[71,11,71,13],[72,11,72,13],[73,11,73,13],[79,4,79,6],[75,4,75,6],[71,4,71,6],[72,4,72,6],[73,4,73,6],[74,4,74,6],[44,15,45,17],[7,15,7,16],[2,15,3,17],[7,11,7,12],[7,9,7,10],[7,17,8,17],[7,5,7,6],[7,13,7,14],[7,7,7,8],[50,9,53,10],[50,11,50,13],[51,11,51,13],[52,11,52,13],[50,2,57,3],[50,4,50,6],[51,4,51,6],[52,4,52,6],[53,4,53,6],[55,9,60,10],[60,11,60,13],[55,11,55,13],[56,11,56,13],[57,11,57,13],[58,11,58,13],[59,11,59,13]]}
[]
[]
[null,null,null,null,null,null,null,null,null,null,null,null,null,null,null,"Gennaio"]
[]
[]
[null,null,"1. Spese variabili"]
[]
[null,null,"data","spese di \nmantenimento",null,"abbigliamento",null,"salute",null,"sociale e cultura",null,"mobilità",null,"spese personali",null,"abitare",null,"totale"]
[null,null,null,"spese per","€","spese per"," €","spese per"," €","spese per","€","spese per"," €","spese per"," €","spese per"," €"]
[null,null,null,null,null,null,null,null,null,null,null,null,null,null,null,null,null,{"$f":"E10+G10+I10+K10+M10+O10+Q10","v":0}]
[null,null,null,null,null,null,null,null,null,null,null,null,null,null,null,null,null,{"$f":"E11+G11+I11+K11+M11+O11+Q11","v":0}]
[null,null,null,null,null,null,null,null,null,null,null,null,null,null,null,null,null,0]
[null,null,null,null,null,null,null,null,null,null,null,null,null,null,null,null,null,0]
[null,null,null,null,null,null,null,null,null,null,null,null,null,null,null,null,null,0]
[null,null,null,null,null,null,null,null,null,null,null,null,null,null,null,null,null,0]
[null,null,null,null,null,null,null,null,null,null,null,null,null,null,null,null,null,0]
[null,null,null,null,null,null,null,null,null,null,null,null,null,null,null,null,null,0]
[null,null,null,null,null,null,null,null,null,null,null,null,null,null,null,null,null,0]
[null,null,null,null,null,null,null,null,null,null,null,null,null,null,null,null,null,0]
[null,null,null,null,null,null,null,null,null,null,null,null,null,null,null,null,null,0]
[null,null,null,null,null,null,null,null,null,null,null,null,null,null,null,null,null,0]
[null,null,null,null,null,null,null,null,null,null,null,null,null,null,null,null,null,0]
[null,null,null,null,null,null,null,null,null,null,null,null,null,null,null,null,null,0]
[null,null,null,null,null,null,null,null,null,null,null,null,null,null,null,null,null,0]
[null,null,null,null,null,null,null,null,null,null,null,null,null,null,null,null,null,0]
[null,null,null,null,null,null,null,null,null,null,null,null,null,null,null,null,null,0]
[null,null,null,null,null,null,null,null,null,null,null,null,null,null,null,null,null,0]
[null,null,null,null,null,null,null,null,null,null,null,null,null,null,null,null,null,0]
[null,null,null,null,null,null,null,null,null,null,null,null,null,null,null,null,null,0]
[null,null,null,null,null,null,null,null,null,null,null,null,null,null,null,null,null,0]
[null,null,null,null,null,null,null,null,null,null,null,null,null,null,null,null,null,0]
[null,null,null,null,null,null,null,null,null,null,null,null,null,null,null,null,null,0]
[null,null,null,null,null,null,null,null,null,null,null,null,null,null,null,null,null,0]
[null,null,null,null,null,null,null,null,null,null,null,null,null,null,null,null,null,0]
[null,null,null,null,null,null,null,null,null,null,null,null,null,null,null,null,null,0]
[null,null,null,null,null,null,null,null,null,null,null,null,null,null,null,null,null,0]
[null,null,null,null,null,null,null,null,null,null,null,null,null,null,null,null,null,0]
[null,null,null,null,null,null,null,null,null,null,null,null,null,null,null,null,null,0]
[null,null,null,null,null,null,null,null,null,null,null,null,null,null,null,null,null,0]
[null,null,null,null,null,null,null,null,null,null,null,null,null,null,null,null,null,0]
[null,null,null,null,null,null,null,null,null,null,null,null,null,null,null,null,null,0]
[null,null,null,"totale",{"$f":"SUM(E10:E41)","v":0},"totale",{"$f":"SUM(G10:G41)","v":0},"totale",{"$f":"SUM(I10:I41)","v":0},"totale",{"$f":"SUM(K10:K41)","v":0},"totale",{"$f":"SUM(M10:M41)","v":0},"totale",{"$f":"SUM(O10:O41)","v":0},"totale",{"$f":"SUM(Q10:Q41)","v":0},0]
[]
[]
[null,null,null,null,null,null,null,null,null,null,null,null,null,null,null,"Gennaio"]
[]
[]
[null,null,"2. Spese fisse"]
[]
[null,null,null,null,null,null,null,"importo €",null,null,null,null,null,null,"importo €"]
[null,null,"abitare",null,"affitto",null,null,null,null,"risparmio",null,"mutuo risparmio, casa, azioni, obbligazioni"]
[null,null,null,null,"spese condominiali",null,null,null,null,null,null,"libretto di risparmio"]
[null,null,null,null,"spese di manutenzione",null,null,null,null,null,null,"altre forme di risparmio"]
[null,null,null,null,"corrente, canone TV",null,null,null,null,null,null,"totale parziale risparmio",null,null,{"$f":"SUM(O51:O53)","v":0}]
[null,null,null,null,"(tele)riscaldamento, gas, legna ecc."]
[null,null,null,null,"acqua, immondizia",null,null,null,null,"abbonamenti e \ntesseramenti",null,"abbonamento giornali"]
[null,null,null,null,"rata mutuo immobile",null,null,null,null,null,null,"tesseramenti"]
[null,null,null,null,"totale parziale abitare",null,null,{"$f":"SUM(H51:H57)","v":0},null,null,null,"abbonamento al teatro"]
[null,null,null,null,null,null,null,null,null,null,null,"carte stagionali (skipass)"]
[null,null,"mobilità",null,"autoveicolo - assicurazione",null,null,null,null,null,null,"altro"]
[null,null,null,null,"autoveicolo - bollo",null,null,null,null,null,null,"totale parziale abbonamenti",null,null,{"$f":"SUM(O56:O60)","v":0}]
[null,null,null,null,"moto - assicurazione"]
[null,null,null,null,"moto - bollo",null,null,null,null,"imposte, tributi, tasse",null,"imposta immobiliare"]
[null,null,null,null,"riparazione, revisione",null,null,null,null,null,null,"diversi tributi/tasse"]
[null,null,null,null,"rata leasing",null,null,null,null,null,null,"altro"]
[null,null,null,null,"contributo ACI",null,null,null,null,null,null,"totale parziale imposte",null,null,{"$f":"SUM(O63:O65)","v":0}]
[null,null,null,null,"totale parziale mobilità",null,null,{"$f":"SUM(H60:H66)","v":0}]
[null,null,null,null,null,null,null,null,null,"bambini",null,"alimenti"]
[null,null,"mezzi pubblici",null,"abbonamento annuale",null,null,null,null,null,null,"babysitter"]
[null,null,null,null,"totale parziale mezzi pubblici",null,null,{"$f":"H69","v":0},null,null,null,"asilo, scuola"]
[null,null,null,null,null,null,null,null,null,null,null,"tasse universitarie"]
[null,null,"comunicazione",null,"telefono fisso",null,null,null,null,null,null,"mensa scolastica"]
[null,null,null,null,"cellulare",null,null,null,null,null,null,"paghetta"]
[null,null,null,null,"internet",null,null,null,null,null,null,"scuola di musica, sport, ecc."]
[null,null,null,null,"Pay-TV, Sky…",null,null,null,null,null,null,"totale parziale bambini",null,null,{"$f":"SUM(O68:O74)","v":0}]
[null,null,null,null,"totale parziale comunicazione",null,null,{"$f":"SUM(H72:H75)","v":0}]
[null,null,null,null,null,null,null,null,null,"debiti",null,"rate prestito"]
[null,null,"assicurazione previdenza",null,"assicurazione abitazione",null,null,null,null,null,null,"altre rate, cambiali, revolving"]
[null,null,null,null,"assicurazione infortunio",null,null,null,null,null,null,"spese contocorrente"]
[null,null,null,null,"assicurazione malattia",null,null,null,null,null,null,"spese carta di credito"]
[null,null,null,null,"assicurazione respons. Civile",null,null,null,null,null,null,"altro"]
[null,null,null,null,"polizza vita",null,null,null,null,null,null,"totale parziale debiti",null,null,{"$f":"SUM(O77:O81)","v":0},null,null,"Spese fisse in gennaio"]
[null,null,null,null,"previdenza pensionistica"]
[null,null,null,null,"altre assicurazioni/previdenza",null,null,null,null,"altro",null,"mantenimento ex coniuge"]
[null,null,null,null,"totale parziale assicurazione",null,null,{"$f":"SUM(H78:H84)","v":0},null,null,null,"altro",null,null,null,null,null,{"$f":"H58+H67+H70+H76+H85+O54+O61+O66+O75+O82+O86","v":0}]
[null,null,null,null,null,null,null,null,null,null,null,"totale parziale altro",null,null,{"$f":"SUM(O84:O85)","v":0}]
[]
[]
[null,null,null,null,null,null,null,null,null,null,null,null,null,null,null,"Gennaio"]
[]
[]
[null,null,"3. Entrate mensili"]
[]
[null,null,null,null,null,null,"importo €"]
[null,null,"stipendio (netto)",null,null,null,null,null,null,null,null,"4. Bilancio mensile"]
[null,null,"stipendio coniuge (netto)"]
[null,null,"figli (contribuiscono)"]
[null,null,"pensione",null,null,null,null,null,null,null,null,null,null,null,null,"Betrag €"]
[null,null,"pensione coniuge",null,null,null,null,null,null,null,null,"entrate",null,null,null,{"$f":"G112","v":0}]
[null,null,"indennità di disoccupazione",null,null,null,null,null,null,null,null,"spese fisse",null,null,null,{"$f":"R85","v":0}]
[null,null,"inserimento al minimo vitale",null,null,null,null,null,null,null,null,"spese variabili",null,null,null,{"$f":"(R42)","v":0}]
[null,null,"contributo canone locazione",null,null,null,null,null,null,null,null,"bugdet a disposizione/mancante",null,null,null,{"$f":"P99-P100-P101","v":0}]
[null,null,"assegni famigliari provincia"]
[null,null,"assegni famigliari regione"]
[null,null,"assegni famigliari stato"]
[null,null,"alimenti/mantenimento"]
[null,null,"assegni di cura"]
[null,null,"borse di studio"]
[null,null,"aiuto da terzi"]
[null,null,"reddito per locazione immobili"]
[null,null,"altri redditi (p.e. interessi, prestazioni occasionali...)"]
[null,null,"totale mese",null,null,null,{"$f":"SUM(G95:G111)","v":0}]

{"sheet":"Febbraio","index":4,"n_rows":112,"n_cols":18,"rows_kept":112,"cut":false,"hidden":false,"merged":[[97,15,97,16],[98,15,98,16],[99,15,99,16],[100,15,100,16],[101,15,101,16],[2,15,3,17],[7,2,8,2],[7,3,7,4],[7,5,7,6],[7,7,7,8],[7,9,7,10],[7,11,7,12],[7,13,7,14],[7,15,7,16],[7,17,8,17],[44,15,45,17],[50,2,57,3],[50,4,50,6],[50,9,53,10],[50,11,50,13],[51,4,51,6],[51,11,51,13],[52,4,52,6],[52,11,52,13],[53,4,53,6],[54,4,54,6],[55,4,55,6],[55,9,60,10],[55,11,55,13],[56,4,56,6],[56,11,56,13],[57,4,57,6],[57,11,57,13],[58,11,58,13],[64,11,64,13],[65,4,65,6],[65,11,65,13],[67,9,74,10],[67,11,67,13],[68,2,69,3],[68,4,68,6],[68,11,68,13],[69,11,69,13],[70,11,70,13],[59,2,66,3],[59,11,59,13],[60,4,60,6],[60,11,60,13],[62,4,62,6],[62,9,65,10],[62,11,62,13],[63,4,63,6],[63,11,63,13],[64,4,64,6],[77,2,84,3],[77,4,77,6],[77,11,77,13],[78,4,78,6],[78,11,78,13],[79,4,79,6],[79,11,79,13],[80,4,80,6],[71,2,75,3],[71,4,71,6],[71,11,71,13],[72,4,72,6],[72,11,72,13],[73,4,73,6],[73,11,73,13],[74,4,74,6],[74,11,74,13],[75,4,75,6],[85,11,85,13],[88,15,89,17],[93,6,93,7],[94,6,94,7],[94,11,95,14],[95,6,95,7],[80,11,80,13],[81,4,81,6],[81,11,81,13],[81,17,83,18],[82,4,82,6],[83,4,83,6],[83,9,85,10],[83,11,83,13],[84,4,84,6],[84,11,84,13],[76,9,81,10],[76,11,76,13],[100,6,100,7],[100,11,100,14],[101,6,101,7],[101,11,101,14],[102,6,102,7],[103,6,103,7],[96,6,96,7],[97,6,97,7],[98,6,98,7],[98,11,98,14],[99,6,99,7],[99,11,99,14],[110,6,110,7],[111,2,111,5],[111,6,111,7],[104,6,104,7],[105,6,105,7],[106,6,106,7],[107,6,107,7],[108,6,108,7],[109,6,109,7]]}
[]
[]
[null,null,null,null,null,null,null,null,null,null,null,null,null,null,null,"Febbraio"]
[]
[]
[null,null,"1. Spese variabili"]
[]
[null,null,"data","spese di \nmantenimento",null,"abbigliamento",null,"salute",null,"sociale e cultura",null,"mobilità",null,"spese personali",null,"abitare",null,"totale"]
[null,null,null,"spese per","€","spese per"," €","spese per"," €","spese per","€","spese per"," €","spese per"," €","spese per"," €"]
[null,null,null,null,null,null,null,null,null,null,null,null,null,null,null,null,null,{"$f":"E10+G10+I10+K10+M10+O10+Q10","v":0}]
[null,null,null,null,null,null,null,null,null,null,null,null,null,null,null,null,null,{"$f":"E11+G11+I11+K11+M11+O11+Q11","v":0}]
[null,null,null,null,null,null,null,null,null,null,null,null,null,null,null,null,null,0]
[null,null,null,null,null,null,null,null,null,null,null,null,null,null,null,null,null,0]
[null,null,null,null,null,null,null,null,null,null,null,null,null,null,null,null,null,0]
[null,null,null,null,null,null,null,null,null,null,null,null,null,null,null,null,null,0]
[null,null,null,null,null,null,null,null,null,null,null,null,null,null,null,null,null,0]
[null,null,null,null,null,null,null,null,null,null,null,null,null,null,null,null,null,0]
[null,null,null,null,null,null,null,null,null,null,null,null,null,null,null,null,null,0]
[null,null,null,null,null,null,null,null,null,null,null,null,null,null,null,null,null,0]
[null,null,null,null,null,null,null,null,null,null,null,null,null,null,null,null,null,0]
[null,null,null,null,null,null,null,null,null,null,null,null,null,null,null,null,null,0]
[null,null,null,null,null,null,null,null,null,null,null,null,null,null,null,null,null,0]
[null,null,null,null,null,null,null,null,null,null,null,null,null,null,null,null,null,0]
[null,null,null,null,null,null,null,null,null,null,null,null,null,null,null,null,null,0]
[null,null,null,null,null,null,null,null,null,null,null,null,null,null,null,null,null,0]
[null,null,null,null,null,null,null,null,null,null,null,null,null,null,null,null,null,0]
[null,null,null,null,null,null,null,null,null,null,null,null,null,null,null,null,null,0]
[null,null,null,null,null,null,null,null,null,null,null,null,null,null,null,null,null,0]
[null,null,null,null,null,null,null,null,null,null,null,null,null,null,null,null,null,0]
[null,null,null,null,null,null,null,null,null,null,null,null,null,null,null,null,null,0]
[null,null,null,null,null,null,null,null,null,null,null,null,null,null,null,null,null,0]
[null,null,null,null,null,null,null,null,null,null,null,null,null,null,null,null,null,0]
[null,null,null,null,null,null,null,null,null,null,null,null,null,null,null,null,null,0]
[null,null,null,null,null,null,null,null,null,null,null,null,null,null,null,null,null,0]
[null,null,null,null,null,null,null,null,null,null,null,null,null,null,null,null,null,0]
[null,null,null,null,null,null,null,null,null,null,null,null,null,null,null,null,null,0]
[null,null,null,null,null,null,null,null,null,null,null,null,null,null,null,null,null,0]
[null,null,null,null,null,null,null,null,null,null,null,null,null,null,null,null,null,0]
[null,null,null,null,null,null,null,null,null,null,null,null,null,null,null,null,null,0]
[null,null,null,null,null,null,null,null,null,null,null,null,null,null,null,null,null,0]
[null,null,null,null,null,null,null,null,null,null,null,null,null,null,null,null,null,0]
[null,null,null,"totale",{"$f":"SUM(E10:E41)","v":0},"totale",{"$f":"SUM(G10:G41)","v":0},"totale",{"$f":"SUM(I10:I41)","v":0},"totale",{"$f":"SUM(K10:K41)","v":0},"totale",{"$f":"SUM(M10:M41)","v":0},"totale",{"$f":"SUM(O10:O41)","v":0},"totale",{"$f":"SUM(Q10:Q41)","v":0},0]
[]
[]
[null,null,null,null,null,null,null,null,null,null,null,null,null,null,null,"Febbraio"]
[]
[]
[null,null,"2. Spese fisse"]
[]
[null,null,null,null,null,null,null,"importo €",null,null,null,null,null,null,"importo €"]
[null,null,"abitare",null,"affitto",null,null,null,null,"risparmio",null,"mutuo risparmio, casa, azioni, obbligazioni"]
[null,null,null,null,"spese condominiali",null,null,null,null,null,null,"libretto di risparmio"]
[null,null,null,null,"spese di manutenzione",null,null,null,null,null,null,"altre forme di risparmio"]
[null,null,null,null,"corrente, canone TV",null,null,null,null,null,null,"totale parziale risparmio",null,null,{"$f":"SUM(O51:O53)","v":0}]
[null,null,null,null,"(tele)riscaldamento, gas, legna ecc."]
[null,null,null,null,"acqua, immondizia",null,null,null,null,"abbonamenti e \ntesseramenti",null,"abbonamento giornali"]
[null,null,null,null,"rata mutuo immobile",null,null,null,null,null,null,"tesseramenti"]
[null,null,null,null,"totale parziale abitare",null,null,{"$f":"SUM(H51:H57)","v":0},null,null,null,"abbonamento al teatro"]
[null,null,null,null,null,null,null,null,null,null,null,"carte stagionali (skipass)"]
[null,null,"mobilità",null,"autoveicolo - assicurazione",null,null,null,null,null,null,"altro"]
[null,null,null,null,"autoveicolo - bollo",null,null,null,null,null,null,"totale parziale abbonamenti",null,null,{"$f":"SUM(O56:O60)","v":0}]
[null,null,null,null,"moto - assicurazione"]
[null,null,null,null,"moto - bollo",null,null,null,null,"imposte, tributi, tasse",null,"imposta immobiliare"]
[null,null,null,null,"riparazione, revisione",null,null,null,null,null,null,"diversi tributi/tasse"]
[null,null,null,null,"rata leasing",null,null,null,null,null,null,"altro"]
[null,null,null,null,"contributo ACI",null,null,null,null,null,null,"totale parziale imposte",null,null,{"$f":"SUM(O63:O65)","v":0}]
[null,null,null,null,"totale parziale mobilità",null,null,{"$f":"SUM(H60:H66)","v":0}]
[null,null,null,null,null,null,null,null,null,"bambini",null,"alimenti"]
[null,null,"mezzi pubblici",null,"abbonamento annuale",null,null,null,null,null,null,"babysitter"]
[null,null,null,null,"totale parziale mezzi pubblici",null,null,{"$f":"H69","v":0},null,null,null,"asilo, scuola"]
[null,null,null,null,null,null,null,null,null,null,null,"tasse universitarie"]
[null,null,"comunicazione",null,"telefono fisso",null,null,null,null,null,null,"mensa scolastica"]
[null,null,null,null,"cellulare",null,null,null,null,null,null,"paghetta"]
[null,null,null,null,"internet",null,null,null,null,null,null,"scuola di musica, sport, ecc."]
[null,null,null,null,"Pay-TV, Sky…",null,null,null,null,null,null,"totale parziale bambini",null,null,{"$f":"SUM(O68:O74)","v":0}]
[null,null,null,null,"totale parziale comunicazione",null,null,{"$f":"SUM(H72:H75)","v":0}]
[null,null,null,null,null,null,null,null,null,"debiti",null,"rate prestito"]
[null,null,"assicurazione previdenza",null,"assicurazione abitazione",null,null,null,null,null,null,"altre rate, cambiali, revolving"]
[null,null,null,null,"assicurazione infortunio",null,null,null,null,null,null,"spese contocorrente"]
[null,null,null,null,"assicurazione malattia",null,null,null,null,null,null,"spese carta di credito"]
[null,null,null,null,"assicurazione respons. Civile",null,null,null,null,null,null,"altro"]
[null,null,null,null,"polizza vita",null,null,null,null,null,null,"totale parziale debiti",null,null,{"$f":"SUM(O77:O81)","v":0},null,null,"Spese fisse a febbraio"]
[null,null,null,null,"previdenza pensionistica"]
[null,null,null,null,"altre assicurazioni/previdenza",null,null,null,null,"altro",null,"mantenimento ex coniuge"]
[null,null,null,null,"totale parziale assicurazione",null,null,{"$f":"SUM(H78:H84)","v":0},null,null,null,"altro",null,null,null,null,null,{"$f":"H58+H67+H70+H76+H85+O54+O61+O66+O75+O82+O86","v":0}]
[null,null,null,null,null,null,null,null,null,null,null,"totale parziale altro",null,null,{"$f":"SUM(O84:O85)","v":0}]
[]
[]
[null,null,null,null,null,null,null,null,null,null,null,null,null,null,null,"Febbraio"]
[]
[]
[null,null,"3. Entrate mensili"]
[]
[null,null,null,null,null,null,"importo €"]
[null,null,"stipendio (netto)",null,null,null,null,null,null,null,null,"4. Bilancio mensile"]
[null,null,"stipendio coniuge (netto)"]
[null,null,"figli (contribuiscono)"]
[null,null,"pensione",null,null,null,null,null,null,null,null,null,null,null,null,"Betrag €"]
[null,null,"pensione coniuge",null,null,null,null,null,null,null,null,"entrate",null,null,null,{"$f":"G112","v":0}]
[null,null,"indennità di disoccupazione",null,null,null,null,null,null,null,null,"spese fisse",null,null,null,{"$f":"R85","v":0}]
[null,null,"inserimento al minimo vitale",null,null,null,null,null,null,null,null,"spese variabili",null,null,null,{"$f":"(R42)","v":0}]
[null,null,"contributo canone locazione",null,null,null,null,null,null,null,null,"bugdet a disposizione/mancante",null,null,null,{"$f":"P99-P100-P101","v":0}]
[null,null,"assegni famigliari provincia"]
[null,null,"assegni famigliari regione"]
[null,null,"assegni famigliari stato"]
[null,null,"alimenti/mantenimento"]
[null,null,"assegni di cura"]
[null,null,"borse di studio"]
[null,null,"aiuto da terzi"]
[null,null,"reddito per locazione immobili"]
[null,null,"altri redditi (p.e. interessi, prestazioni occasionali...)"]
[null,null,"totale mese",null,null,null,{"$f":"SUM(G95:G111)","v":0}]

{"sheet":"Marzo","index":5,"n_rows":112,"n_cols":18,"rows_kept":112,"cut":false,"hidden":false,"merged":[[97,15,97,16],[98,15,98,16],[99,15,99,16],[100,15,100,16],[101,15,101,16],[2,15,3,17],[7,2,8,2],[7,3,7,4],[7,5,7,6],[7,7,7,8],[7,9,7,10],[7,11,7,12],[7,13,7,14],[7,15,7,16],[7,17,8,17],[44,15,45,17],[50,2,57,3],[50,4,50,6],[50,9,53,10],[50,11,50,13],[51,4,51,6],[51,11,51,13],[52,4,52,6],[52,11,52,13],[53,4,53,6],[54,4,54,6],[55,4,55,6],[55,9,60,10],[55,11,55,13],[56,4,56,6],[56,11,56,13],[57,4,57,6],[57,11,57,13],[58,11,58,13],[64,11,64,13],[65,4,65,6],[65,11,65,13],[67,9,74,10],[67,11,67,13],[68,2,69,3],[68,4,68,6],[68,11,68,13],[69,11,69,13],[70,11,70,13],[59,2,66,3],[59,11,59,13],[60,4,60,6],[60,11,60,13],[62,4,62,6],[62,9,65,10],[62,11,62,13],[63,4,63,6],[63,11,63,13],[64,4,64,6],[77,2,84,3],[77,4,77,6],[77,11,77,13],[78,4,78,6],[78,11,78,13],[79,4,79,6],[79,11,79,13],[80,4,80,6],[71,2,75,3],[71,4,71,6],[71,11,71,13],[72,4,72,6],[72,11,72,13],[73,4,73,6],[73,11,73,13],[74,4,74,6],[74,11,74,13],[75,4,75,6],[85,11,85,13],[88,15,89,17],[93,6,93,7],[94,6,94,7],[94,11,95,14],[95,6,95,7],[80,11,80,13],[81,4,81,6],[81,11,81,13],[81,17,83,18],[82,4,82,6],[83,4,83,6],[83,9,85,10],[83,11,83,13],[84,4,84,6],[84,11,84,13],[76,9,81,10],[76,11,76,13],[100,6,100,7],[100,11,100,14],[101,6,101,7],[101,11,101,14],[102,6,102,7],[103,6,103,7],[96,6,96,7],[97,6,97,7],[98,6,98,7],[98,11,98,14],[99,6,99,7],[99,11,99,14],[110,6,110,7],[111,2,111,5],[111,6,111,7],[104,6,104,7],[105,6,105,7],[106,6,106,7],[107,6,107,7],[108,6,108,7],[109,6,109,7]]}
[]
[]
[null,null,null,null,null,null,null,null,null,null,null,null,null,null,null,"Marzo"]
[]
[]
[null,null,"1. Spese variabili"]
[]
[null,null,"data","spese di \nmantenimento",null,"abbigliamento",null,"salute",null,"sociale e cultura",null,"mobilità",null,"spese personali",null,"abitare",null,"totale"]
[null,null,null,"spese per","€","spese per"," €","spese per"," €","spese per","€","spese per"," €","spese per"," €","spese per"," €"]
[null,null,null,null,null,null,null,null,null,null,null,null,null,null,null,null,null,{"$f":"E10+G10+I10+K10+M10+O10+Q10","v":0}]
[null,null,null,null,null,null,null,null,null,null,null,null,null,null,null,null,null,{"$f":"E11+G11+I11+K11+M11+O11+Q11","v":0}]
[null,null,null,null,null,null,null,null,null,null,null,null,null,null,null,null,null,0]
[null,null,null,null,null,null,null,null,null,null,null,null,null,null,null,null,null,0]
[null,null,null,null,null,null,null,null,null,null,null,null,null,null,null,null,null,0]
[null,null,null,null,null,null,null,null,null,null,null,null,null,null,null,null,null,0]
[null,null,null,null,null,null,null,null,null,null,null,null,null,null,null,null,null,0]
[null,null,null,null,null,null,null,null,null,null,null,null,null,null,null,null,null,0]
[null,null,null,null,null,null,null,null,null,null,null,null,null,null,null,null,null,0]
[null,null,null,null,null,null,null,null,null,null,null,null,null,null,null,null,null,0]
[null,null,null,null,null,null,null,null,null,null,null,null,null,null,null,null,null,0]
[null,null,null,null,null,null,null,null,null,null,null,null,null,null,null,null,null,0]
[null,null,null,null,null,null,null,null,null,null,null,null,null,null,null,null,null,0]
[null,null,null,null,null,null,null,null,null,null,null,null,null,null,null,null,null,0]
[null,null,null,null,null,null,null,null,null,null,null,null,null,null,null,null,null,0]
[null,null,null,null,null,null,null,null,null,null,null,null,null,null,null,null,null,0]
[null,null,null,null,null,null,null,null,null,null,null,null,null,null,null,null,null,0]
[null,null,null,null,null,null,null,null,null,null,null,null,null,null,null,null,null,0]
[null,null,null,null,null,null,null,null,null,null,null,null,null,null,null,null,null,0]
[null,null,null,null,null,null,null,null,null,null,null,null,null,null,null,null,null,0]
[null,null,null,null,null,null,null,null,null,null,null,null,null,null,null,null,null,0]
[null,null,null,null,null,null,null,null,null,null,null,null,null,null,null,null,null,0]
[null,null,null,null,null,null,null,null,null,null,null,null,null,null,null,null,null,0]
[null,null,null,null,null,null,null,null,null,null,null,null,null,null,null,null,null,0]
[null,null,null,null,null,null,null,null,null,null,null,null,null,null,null,null,null,0]
[null,null,null,null,null,null,null,null,null,null,null,null,null,null,null,null,null,0]
[null,null,null,null,null,null,null,null,null,null,null,null,null,null,null,null,null,0]
[null,null,null,null,null,null,null,null,null,null,null,null,null,null,null,null,null,0]
[null,null,null,null,null,null,null,null,null,null,null,null,null,null,null,null,null,0]
[null,null,null,null,null,null,null,null,null,null,null,null,null,null,null,null,null,0]
[null,null,null,null,null,null,null,null,null,null,null,null,null,null,null,null,null,0]
[null,null,null,null,null,null,null,null,null,null,null,null,null,null,null,null,null,0]
[null,null,null,"totale",{"$f":"SUM(E10:E41)","v":0},"totale",{"$f":"SUM(G10:G41)","v":0},"totale",{"$f":"SUM(I10:I41)","v":0},"totale",{"$f":"SUM(K10:K41)","v":0},"totale",{"$f":"SUM(M10:M41)","v":0},"totale",{"$f":"SUM(O10:O41)","v":0},"totale",{"$f":"SUM(Q10:Q41)","v":0},0]
[]
[]
[null,null,null,null,null,null,null,null,null,null,null,null,null,null,null,"Marzo"]
[]
[]
[null,null,"2. Spese fisse"]
[]
[null,null,null,null,null,null,null,"importo €",null,null,null,null,null,null,"importo €"]
[null,null,"abitare",null,"affitto",null,null,null,null,"risparmio",null,"mutuo risparmio, casa, azioni, obbligazioni"]
[null,null,null,null,"spese condominiali",null,null,null,null,null,null,"libretto di risparmio"]
[null,null,null,null,"spese di manutenzione",null,null,null,null,null,null,"altre forme di risparmio"]
[null,null,null,null,"corrente, canone TV",null,null,null,null,null,null,"totale parziale risparmio",null,null,{"$f":"SUM(O51:O53)","v":0}]
[null,null,null,null,"(tele)riscaldamento, gas, legna ecc."]
[null,null,null,null,"acqua, immondizia",null,null,null,null,"abbonamenti e \ntesseramenti",null,"abbonamento giornali"]
[null,null,null,null,"rata mutuo immobile",null,null,null,null,null,null,"tesseramenti"]
[null,null,null,null,"totale parziale abitare",null,null,{"$f":"SUM(H51:H57)","v":0},null,null,null,"abbonamento al teatro"]
[null,null,null,null,null,null,null,null,null,null,null,"carte stagionali (skipass)"]
[null,null,"mobilità",null,"autoveicolo - assicurazione",null,null,null,null,null,null,"altro"]
[null,null,null,null,"autoveicolo - bollo",null,null,null,null,null,null,"totale parziale abbonamenti",null,null,{"$f":"SUM(O56:O60)","v":0}]
[null,null,null,null,"moto - assicurazione"]
[null,null,null,null,"moto - bollo",null,null,null,null,"imposte, tributi, tasse",null,"imposta immobiliare"]
[null,null,null,null,"riparazione, revisione",null,null,null,null,null,null,"diversi tributi/tasse"]
[null,null,null,null,"rata leasing",null,null,null,null,null,null,"altro"]
[null,null,null,null,"contributo ACI",null,null,null,null,null,null,"totale parziale imposte",null,null,{"$f":"SUM(O63:O65)","v":0}]
[null,null,null,null,"totale parziale mobilità",null,null,{"$f":"SUM(H60:H66)","v":0}]
[null,null,null,null,null,null,null,null,null,"bambini",null,"alimenti"]
[null,null,"mezzi pubblici",null,"abbonamento annuale",null,null,null,null,null,null,"babysitter"]
[null,null,null,null,"totale parziale mezzi pubblici",null,null,{"$f":"H69","v":0},null,null,null,"asilo, scuola"]
[null,null,null,null,null,null,null,null,null,null,null,"tasse universitarie"]
[null,null,"comunicazione",null,"telefono fisso",null,null,null,null,null,null,"mensa scolastica"]
[null,null,null,null,"cellulare",null,null,null,null,null,null,"paghetta"]
[null,null,null,null,"internet",null,null,null,null,null,null,"scuola di musica, sport, ecc."]
[null,null,null,null,"Pay-TV, Sky…",null,null,null,null,null,null,"totale parziale bambini",null,null,{"$f":"SUM(O68:O74)","v":0}]
[null,null,null,null,"totale parziale comunicazione",null,null,{"$f":"SUM(H72:H75)","v":0}]
[null,null,null,null,null,null,null,null,null,"debiti",null,"rate prestito"]
[null,null,"assicurazione previdenza",null,"assicurazione abitazione",null,null,null,null,null,null,"altre rate, cambiali, revolving"]
[null,null,null,null,"assicurazione infortunio",null,null,null,null,null,null,"spese contocorrente"]
[null,null,null,null,"assicurazione malattia",null,null,null,null,null,null,"spese carta di credito"]
[null,null,null,null,"assicurazione respons. Civile",null,null,null,null,null,null,"altro"]
[null,null,null,null,"polizza vita",null,null,null,null,null,null,"totale parziale debiti",null,null,{"$f":"SUM(O77:O81)","v":0},null,null,"Spese fisse a marzo"]
[null,null,null,null,"previdenza pensionistica"]
[null,null,null,null,"altre assicurazioni/previdenza",null,null,null,null,"altro",null,"mantenimento ex coniuge"]
[null,null,null,null,"totale parziale assicurazione",null,null,{"$f":"SUM(H78:H84)","v":0},null,null,null,"altro",null,null,null,null,null,{"$f":"H58+H67+H70+H76+H85+O54+O61+O66+O75+O82+O86","v":0}]
[null,null,null,null,null,null,null,null,null,null,null,"totale parziale altro",null,null,{"$f":"SUM(O84:O85)","v":0}]
[]
[]
[null,null,null,null,null,null,null,null,null,null,null,null,null,null,null,"Marzo"]
[]
[]
[null,null,"3. Entrate mensili"]
[]
[null,null,null,null,null,null,"importo €"]
[null,null,"stipendio (netto)",null,null,null,null,null,null,null,null,"4. Bilancio mensile"]
[null,null,"stipendio coniuge (netto)"]
[null,null,"figli (contribuiscono)"]
[null,null,"pensione",null,null,null,null,null,null,null,null,null,null,null,null,"Betrag €"]
[null,null,"pensione coniuge",null,null,null,null,null,null,null,null,"entrate",null,null,null,{"$f":"G112","v":0}]
[null,null,"indennità di disoccupazione",null,null,null,null,null,null,null,null,"spese fisse",null,null,null,{"$f":"R85","v":0}]
[null,null,"inserimento al minimo vitale",null,null,null,null,null,null,null,null,"spese variabili",null,null,null,{"$f":"(R42)","v":0}]
[null,null,"contributo canone locazione",null,null,null,null,null,null,null,null,"bugdet a disposizione/mancante",null,null,null,{"$f":"P99-P100-P101","v":0}]
[null,null,"assegni famigliari provincia"]
[null,null,"assegni famigliari regione"]
[null,null,"assegni famigliari stato"]
[null,null,"alimenti/mantenimento"]
[null,null,"assegni di cura"]
[null,null,"borse di studio"]
[null,null,"aiuto da terzi"]
[null,null,"reddito per locazione immobili"]
[null,null,"altri redditi (p.e. interessi, prestazioni occasionali...)"]
[null,null,"totale mese",null,null,null,{"$f":"SUM(G95:G111)","v":0}]

{"sheet":"Aprile","index":6,"n_rows":112,"n_cols":18,"rows_kept":112,"cut":false,"hidden":false,"merged":[[97,15,97,16],[98,15,98,16],[99,15,99,16],[100,15,100,16],[101,15,101,16],[2,15,3,17],[7,2,8,2],[7,3,7,4],[7,5,7,6],[7,7,7,8],[7,9,7,10],[7,11,7,12],[7,13,7,14],[7,15,7,16],[7,17,8,17],[44,15,45,17],[50,2,57,3],[50,4,50,6],[50,9,53,10],[50,11,50,13],[51,4,51,6],[51,11,51,13],[52,4,52,6],[52,11,52,13],[53,4,53,6],[54,4,54,6],[55,4,55,6],[55,9,60,10],[55,11,55,13],[56,4,56,6],[56,11,56,13],[57,4,57,6],[57,11,57,13],[58,11,58,13],[64,11,64,13],[65,4,65,6],[65,11,65,13],[67,9,74,10],[67,11,67,13],[68,2,69,3],[68,4,68,6],[68,11,68,13],[69,11,69,13],[70,11,70,13],[59,2,66,3],[59,11,59,13],[60,4,60,6],[60,11,60,13],[62,4,62,6],[62,9,65,10],[62,11,62,13],[63,4,63,6],[63,11,63,13],[64,4,64,6],[77,2,84,3],[77,4,77,6],[77,11,77,13],[78,4,78,6],[78,11,78,13],[79,4,79,6],[79,11,79,13],[80,4,80,6],[71,2,75,3],[71,4,71,6],[71,11,71,13],[72,4,72,6],[72,11,72,13],[73,4,73,6],[73,11,73,13],[74,4,74,6],[74,11,74,13],[75,4,75,6],[85,11,85,13],[88,15,89,17],[93,6,93,7],[94,6,94,7],[94,11,95,14],[95,6,95,7],[80,11,80,13],[81,4,81,6],[81,11,81,13],[81,17,83,18],[82,4,82,6],[83,4,83,6],[83,9,85,10],[83,11,83,13],[84,4,84,6],[84,11,84,13],[76,9,81,10],[76,11,76,13],[100,6,100,7],[100,11,100,14],[101,6,101,7],[101,11,101,14],[102,6,102,7],[103,6,103,7],[96,6,96,7],[97,6,97,7],[98,6,98,7],[98,11,98,14],[99,6,99,7],[99,11,99,14],[110,6,110,7],[111,2,111,5],[111,6,111,7],[104,6,104,7],[105,6,105,7],[106,6,106,7],[107,6,107,7],[108,6,108,7],[109,6,109,7]]}
[]
[]
[null,null,null,null,null,null,null,null,null,null,null,null,null,null,null,"Aprile"]
[]
[]
[null,null,"1. Spese variabili"]
[]
[null,null,"data","spese di \nmantenimento",null,"abbigliamento",null,"salute",null,"sociale e cultura",null,"mobilità",null,"spese personali",null,"abitare",null,"totale"]
[null,null,null,"spese per","€","spese per"," €","spese per"," €","spese per","€","spese per"," €","spese per"," €","spese per"," €"]
[null,null,null,null,null,null,null,null,null,null,null,null,null,null,null,null,null,{"$f":"E10+G10+I10+K10+M10+O10+Q10","v":0}]
[null,null,null,null,null,null,null,null,null,null,null,null,null,null,null,null,null,{"$f":"E11+G11+I11+K11+M11+O11+Q11","v":0}]
[null,null,null,null,null,null,null,null,null,null,null,null,null,null,null,null,null,0]
[null,null,null,null,null,null,null,null,null,null,null,null,null,null,null,null,null,0]
[null,null,null,null,null,null,null,null,null,null,null,null,null,null,null,null,null,0]
[null,null,null,null,null,null,null,null,null,null,null,null,null,null,null,null,null,0]
[null,null,null,null,null,null,null,null,null,null,null,null,null,null,null,null,null,0]
[null,null,null,null,null,null,null,null,null,null,null,null,null,null,null,null,null,0]
[null,null,null,null,null,null,null,null,null,null,null,null,null,null,null,null,null,0]
[null,null,null,null,null,null,null,null,null,null,null,null,null,null,null,null,null,0]
[null,null,null,null,null,null,null,null,null,null,null,null,null,null,null,null,null,0]
[null,null,null,null,null,null,null,null,null,null,null,null,null,null,null,null,null,0]
[null,null,null,null,null,null,null,null,null,null,null,null,null,null,null,null,null,0]
[null,null,null,null,null,null,null,null,null,null,null,null,null,null,null,null,null,0]
[null,null,null,null,null,null,null,null,null,null,null,null,null,null,null,null,null,0]
[null,null,null,null,null,null,null,null,null,null,null,null,null,null,null,null,null,0]
[null,null,null,null,null,null,null,null,null,null,null,null,null,null,null,null,null,0]
[null,null,null,null,null,null,null,null,null,null,null,null,null,null,null,null,null,0]
[null,null,null,null,null,null,null,null,null,null,null,null,null,null,null,null,null,0]
[null,null,null,null,null,null,null,null,null,null,null,null,null,null,null,null,null,0]
[null,null,null,null,null,null,null,null,null,null,null,null,null,null,null,null,null,0]
[null,null,null,null,null,null,null,null,null,null,null,null,null,null,null,null,null,0]
[null,null,null,null,null,null,null,null,null,null,null,null,null,null,null,null,null,0]
[null,null,null,null,null,null,null,null,null,null,null,null,null,null,null,null,null,0]
[null,null,null,null,null,null,null,null,null,null,null,null,null,null,null,null,null,0]
[null,null,null,null,null,null,null,null,null,null,null,null,null,null,null,null,null,0]
[null,null,null,null,null,null,null,null,null,null,null,null,null,null,null,null,null,0]
[null,null,null,null,null,null,null,null,null,null,null,null,null,null,null,null,null,0]
[null,null,null,null,null,null,null,null,null,null,null,null,null,null,null,null,null,0]
[null,null,null,null,null,null,null,null,null,null,null,null,null,null,null,null,null,0]
[null,null,null,null,null,null,null,null,null,null,null,null,null,null,null,null,null,0]
[null,null,null,null,null,null,null,null,null,null,null,null,null,null,null,null,null,0]
[null,null,null,"totale",{"$f":"SUM(E10:E41)","v":0},"totale",{"$f":"SUM(G10:G41)","v":0},"totale",{"$f":"SUM(I10:I41)","v":0},"totale",{"$f":"SUM(K10:K41)","v":0},"totale",{"$f":"SUM(M10:M41)","v":0},"totale",{"$f":"SUM(O10:O41)","v":0},"totale",{"$f":"SUM(Q10:Q41)","v":0},0]
[]
[]
[null,null,null,null,null,null,null,null,null,null,null,null,null,null,null,"Aprile"]
[]
[]
[null,null,"2. Spese fisse"]
[]
[null,null,null,null,null,null,null,"importo €",null,null,null,null,null,null,"importo €"]
[null,null,"abitare",null,"affitto",null,null,null,null,"risparmio",null,"mutuo risparmio, casa, azioni, obbligazioni"]
[null,null,null,null,"spese condominiali",null,null,null,null,null,null,"libretto di risparmio"]
[null,null,null,null,"spese di manutenzione",null,null,null,null,null,null,"altre forme di risparmio"]
[null,null,null,null,"corrente, canone TV",null,null,null,null,null,null,"totale parziale risparmio",null,null,{"$f":"SUM(O51:O53)","v":0}]
[null,null,null,null,"(tele)riscaldamento, gas, legna ecc."]
[null,null,null,null,"acqua, immondizia",null,null,null,null,"abbonamenti e \ntesseramenti",null,"abbonamento giornali"]
[null,null,null,null,"rata mutuo immobile",null,null,null,null,null,null,"tesseramenti"]
[null,null,null,null,"totale parziale abitare",null,null,{"$f":"SUM(H51:H57)","v":0},null,null,null,"abbonamento al teatro"]
[null,null,null,null,null,null,null,null,null,null,null,"carte stagionali (skipass)"]
[null,null,"mobilità",null,"autoveicolo - assicurazione",null,null,null,null,null,null,"altro"]
[null,null,null,null,"autoveicolo - bollo",null,null,null,null,null,null,"totale parziale abbonamenti",null,null,{"$f":"SUM(O56:O60)","v":0}]
[null,null,null,null,"moto - assicurazione"]
[null,null,null,null,"moto - bollo",null,null,null,null,"imposte, tributi, tasse",null,"imposta immobiliare"]
[null,null,null,null,"riparazione, revisione",null,null,null,null,null,null,"diversi tributi/tasse"]
[null,null,null,null,"rata leasing",null,null,null,null,null,null,"altro"]
[null,null,null,null,"contributo ACI",null,null,null,null,null,null,"totale parziale imposte",null,null,{"$f":"SUM(O63:O65)","v":0}]
[null,null,null,null,"totale parziale mobilità",null,null,{"$f":"SUM(H60:H66)","v":0}]
[null,null,null,null,null,null,null,null,null,"bambini",null,"alimenti"]
[null,null,"mezzi pubblici",null,"abbonamento annuale",null,null,null,null,null,null,"babysitter"]
[null,null,null,null,"totale parziale mezzi pubblici",null,null,{"$f":"H69","v":0},null,null,null,"asilo, scuola"]
[null,null,null,null,null,null,null,null,null,null,null,"tasse universitarie"]
[null,null,"comunicazione",null,"telefono fisso",null,null,null,null,null,null,"mensa scolastica"]
[null,null,null,null,"cellulare",null,null,null,null,null,null,"paghetta"]
[null,null,null,null,"internet",null,null,null,null,null,null,"scuola di musica, sport, ecc."]
[null,null,null,null,"Pay-TV, Sky…",null,null,null,null,null,null,"totale parziale bambini",null,null,{"$f":"SUM(O68:O74)","v":0}]
[null,null,null,null,"totale parziale comunicazione",null,null,{"$f":"SUM(H72:H75)","v":0}]
[null,null,null,null,null,null,null,null,null,"debiti",null,"rate prestito"]
[null,null,"assicurazione previdenza",null,"assicurazione abitazione",null,null,null,null,null,null,"altre rate, cambiali, revolving"]
[null,null,null,null,"assicurazione infortunio",null,null,null,null,null,null,"spese contocorrente"]
[null,null,null,null,"assicurazione malattia",null,null,null,null,null,null,"spese carta di credito"]
[null,null,null,null,"assicurazione respons. Civile",null,null,null,null,null,null,"altro"]
[null,null,null,null,"polizza vita",null,null,null,null,null,null,"totale parziale debiti",null,null,{"$f":"SUM(O77:O81)","v":0},null,null,"Spese fisse in aprile"]
[null,null,null,null,"previdenza pensionistica"]
[null,null,null,null,"altre assicurazioni/previdenza",null,null,null,null,"altro",null,"mantenimento ex coniuge"]
[null,null,null,null,"totale parziale assicurazione",null,null,{"$f":"SUM(H78:H84)","v":0},null,null,null,"altro",null,null,null,null,null,{"$f":"H58+H67+H70+H76+H85+O54+O61+O66+O75+O82+O86","v":0}]
[null,null,null,null,null,null,null,null,null,null,null,"totale parziale altro",null,null,{"$f":"SUM(O84:O85)","v":0}]
[]
[]
[null,null,null,null,null,null,null,null,null,null,null,null,null,null,null,"Aprile"]
[]
[]
[null,null,"3. Entrate mensili"]
[]
[null,null,null,null,null,null,"importo €"]
[null,null,"stipendio (netto)",null,null,null,null,null,null,null,null,"4. Bilancio mensile"]
[null,null,"stipendio coniuge (netto)"]
[null,null,"figli (contribuiscono)"]
[null,null,"pensione",null,null,null,null,null,null,null,null,null,null,null,null,"Betrag €"]
[null,null,"pensione coniuge",null,null,null,null,null,null,null,null,"entrate",null,null,null,{"$f":"G112","v":0}]
[null,null,"indennità di disoccupazione",null,null,null,null,null,null,null,null,"spese fisse",null,null,null,{"$f":"R85","v":0}]
[null,null,"inserimento al minimo vitale",null,null,null,null,null,null,null,null,"spese variabili",null,null,null,{"$f":"(R42)","v":0}]
[null,null,"contributo canone locazione",null,null,null,null,null,null,null,null,"bugdet a disposizione/mancante",null,null,null,{"$f":"P99-P100-P101","v":0}]
[null,null,"assegni famigliari provincia"]
[null,null,"assegni famigliari regione"]
[null,null,"assegni famigliari stato"]
[null,null,"alimenti/mantenimento"]
[null,null,"assegni di cura"]
[null,null,"borse di studio"]
[null,null,"aiuto da terzi"]
[null,null,"reddito per locazione immobili"]
[null,null,"altri redditi (p.e. interessi, prestazioni occasionali...)"]
[null,null,"totale mese",null,null,null,{"$f":"SUM(G95:G111)","v":0}]

{"sheet":"Maggio","index":7,"n_rows":112,"n_cols":18,"rows_kept":112,"cut":false,"hidden":false,"merged":[[97,15,97,16],[98,15,98,16],[99,15,99,16],[100,15,100,16],[101,15,101,16],[2,15,3,17],[7,2,8,2],[7,3,7,4],[7,5,7,6],[7,7,7,8],[7,9,7,10],[7,11,7,12],[7,13,7,14],[7,15,7,16],[7,17,8,17],[44,15,45,17],[50,2,57,3],[50,4,50,6],[50,9,53,10],[50,11,50,13],[51,4,51,6],[51,11,51,13],[52,4,52,6],[52,11,52,13],[53,4,53,6],[54,4,54,6],[55,4,55,6],[55,9,60,10],[55,11,55,13],[56,4,56,6],[56,11,56,13],[57,4,57,6],[57,11,57,13],[58,11,58,13],[64,11,64,13],[65,4,65,6],[65,11,65,13],[67,9,74,10],[67,11,67,13],[68,2,69,3],[68,4,68,6],[68,11,68,13],[69,11,69,13],[70,11,70,13],[59,2,66,3],[59,11,59,13],[60,4,60,6],[60,11,60,13],[62,4,62,6],[62,9,65,10],[62,11,62,13],[63,4,63,6],[63,11,63,13],[64,4,64,6],[77,2,84,3],[77,4,77,6],[77,11,77,13],[78,4,78,6],[78,11,78,13],[79,4,79,6],[79,11,79,13],[80,4,80,6],[71,2,75,3],[71,4,71,6],[71,11,71,13],[72,4,72,6],[72,11,72,13],[73,4,73,6],[73,11,73,13],[74,4,74,6],[74,11,74,13],[75,4,75,6],[85,11,85,13],[88,15,89,17],[93,6,93,7],[94,6,94,7],[94,11,95,14],[95,6,95,7],[80,11,80,13],[81,4,81,6],[81,11,81,13],[81,17,83,18],[82,4,82,6],[83,4,83,6],[83,9,85,10],[83,11,83,13],[84,4,84,6],[84,11,84,13],[76,9,81,10],[76,11,76,13],[100,6,100,7],[100,11,100,14],[101,6,101,7],[101,11,101,14],[102,6,102,7],[103,6,103,7],[96,6,96,7],[97,6,97,7],[98,6,98,7],[98,11,98,14],[99,6,99,7],[99,11,99,14],[110,6,110,7],[111,2,111,5],[111,6,111,7],[104,6,104,7],[105,6,105,7],[106,6,106,7],[107,6,107,7],[108,6,108,7],[109,6,109,7]]}
[]
[]
[null,null,null,null,null,null,null,null,null,null,null,null,null,null,null,"Maggio"]
[]
[]
[null,null,"1. Spese variabili"]
[]
[null,null,"data","spese di \nmantenimento",null,"abbigliamento",null,"salute",null,"sociale e cultura",null,"mobilità",null,"spese personali",null,"abitare",null,"totale"]
[null,null,null,"spese per","€","spese per"," €","spese per"," €","spese per","€","spese per"," €","spese per"," €","spese per"," €"]
[null,null,null,null,null,null,null,null,null,null,null,null,null,null,null,null,null,{"$f":"E10+G10+I10+K10+M10+O10+Q10","v":0}]
[null,null,null,null,null,null,null,null,null,null,null,null,null,null,null,null,null,{"$f":"E11+G11+I11+K11+M11+O11+Q11","v":0}]
[null,null,null,null,null,null,null,null,null,null,null,null,null,null,null,null,null,0]
[null,null,null,null,null,null,null,null,null,null,null,null,null,null,null,null,null,0]
[null,null,null,null,null,null,null,null,null,null,null,null,null,null,null,null,null,0]
[null,null,null,null,null,null,null,null,null,null,null,null,null,null,null,null,null,0]
[null,null,null,null,null,null,null,null,null,null,null,null,null,null,null,null,null,0]
[null,null,null,null,null,null,null,null,null,null,null,null,null,null,null,null,null,0]
[null,null,null,null,null,null,null,null,null,null,null,null,null,null,null,null,null,0]
[null,null,null,null,null,null,null,null,null,null,null,null,null,null,null,null,null,0]
[null,null,null,null,null,null,null,null,null,null,null,null,null,null,null,null,null,0]
[null,null,null,null,null,null,null,null,null,null,null,null,null,null,null,null,null,0]
[null,null,null,null,null,null,null,null,null,null,null,null,null,null,null,null,null,0]
[null,null,null,null,null,null,null,null,null,null,null,null,null,null,null,null,null,0]
[null,null,null,null,null,null,null,null,null,null,null,null,null,null,null,null,null,0]
[null,null,null,null,null,null,null,null,null,null,null,null,null,null,null,null,null,0]
[null,null,null,null,null,null,null,null,null,null,null,null,null,null,null,null,null,0]
[null,null,null,null,null,null,null,null,null,null,null,null,null,null,null,null,null,0]
[null,null,null,null,null,null,null,null,null,null,null,null,null,null,null,null,null,0]
[null,null,null,null,null,null,null,null,null,null,null,null,null,null,null,null,null,0]
[null,null,null,null,null,null,null,null,null,null,null,null,null,null,null,null,null,0]
[null,null,null,null,null,null,null,null,null,null,null,null,null,null,null,null,null,0]
[null,null,null,null,null,null,null,null,null,null,null,null,null,null,null,null,null,0]
[null,null,null,null,null,null,null,null,null,null,null,null,null,null,null,null,null,0]
[null,null,null,null,null,null,null,null,null,null,null,null,null,null,null,null,null,0]
[null,null,null,null,null,null,null,null,null,null,null,null,null,null,null,null,null,0]
[null,null,null,null,null,null,null,null,null,null,null,null,null,null,null,null,null,0]
[null,null,null,null,null,null,null,null,null,null,null,null,null,null,null,null,null,0]
[null,null,null,null,null,null,null,null,null,null,null,null,null,null,null,null,null,0]
[null,null,null,null,null,null,null,null,null,null,null,null,null,null,null,null,null,0]
[null,null,null,null,null,null,null,null,null,null,null,null,null,null,null,null,null,0]
[null,null,null,null,null,null,null,null,null,null,null,null,null,null,null,null,null,0]
[null,null,null,"totale",{"$f":"SUM(E10:E41)","v":0},"totale",{"$f":"SUM(G10:G41)","v":0},"totale",{"$f":"SUM(I10:I41)","v":0},"totale",{"$f":"SUM(K10:K41)","v":0},"totale",{"$f":"SUM(M10:M41)","v":0},"totale",{"$f":"SUM(O10:O41)","v":0},"totale",{"$f":"SUM(Q10:Q41)","v":0},0]
[]
[]
[null,null,null,null,null,null,null,null,null,null,null,null,null,null,null,"Maggio"]
[]
[]
[null,null,"2. Spese fisse"]
[]
[null,null,null,null,null,null,null,"importo €",null,null,null,null,null,null,"importo €"]
[null,null,"abitare",null,"affitto",null,null,null,null,"risparmio",null,"mutuo risparmio, casa, azioni, obbligazioni"]
[null,null,null,null,"spese condominiali",null,null,null,null,null,null,"libretto di risparmio"]
[null,null,null,null,"spese di manutenzione",null,null,null,null,null,null,"altre forme di risparmio"]
[null,null,null,null,"corrente, canone TV",null,null,null,null,null,null,"totale parziale risparmio",null,null,{"$f":"SUM(O51:O53)","v":0}]
[null,null,null,null,"(tele)riscaldamento, gas, legna ecc."]
[null,null,null,null,"acqua, immondizia",null,null,null,null,"abbonamenti e \ntesseramenti",null,"abbonamento giornali"]
[null,null,null,null,"rata mutuo immobile",null,null,null,null,null,null,"tesseramenti"]
[null,null,null,null,"totale parziale abitare",null,null,{"$f":"SUM(H51:H57)","v":0},null,null,null,"abbonamento al teatro"]
[null,null,null,null,null,null,null,null,null,null,null,"carte stagionali (skipass)"]
[null,null,"mobilità",null,"autoveicolo - assicurazione",null,null,null,null,null,null,"altro"]
[null,null,null,null,"autoveicolo - bollo",null,null,null,null,null,null,"totale parziale abbonamenti",null,null,{"$f":"SUM(O56:O60)","v":0}]
[null,null,null,null,"moto - assicurazione"]
[null,null,null,null,"moto - bollo",null,null,null,null,"imposte, tributi, tasse",null,"imposta immobiliare"]
[null,null,null,null,"riparazione, revisione",null,null,null,null,null,null,"diversi tributi/tasse"]
[null,null,null,null,"rata leasing",null,null,null,null,null,null,"altro"]
[null,null,null,null,"contributo ACI",null,null,null,null,null,null,"totale parziale imposte",null,null,{"$f":"SUM(O63:O65)","v":0}]
[null,null,null,null,"totale parziale mobilità",null,null,{"$f":"SUM(H60:H66)","v":0}]
[null,null,null,null,null,null,null,null,null,"bambini",null,"alimenti"]
[null,null,"mezzi pubblici",null,"abbonamento annuale",null,null,null,null,null,null,"babysitter"]
[null,null,null,null,"totale parziale mezzi pubblici",null,null,{"$f":"H69","v":0},null,null,null,"asilo, scuola"]
[null,null,null,null,null,null,null,null,null,null,null,"tasse universitarie"]
[null,null,"comunicazione",null,"telefono fisso",null,null,null,null,null,null,"mensa scolastica"]
[null,null,null,null,"cellulare",null,null,null,null,null,null,"paghetta"]
[null,null,null,null,"internet",null,null,null,null,null,null,"scuola di musica, sport, ecc."]
[null,null,null,null,"Pay-TV, Sky…",null,null,null,null,null,null,"totale parziale bambini",null,null,{"$f":"SUM(O68:O74)","v":0}]
[null,null,null,null,"totale parziale comunicazione",null,null,{"$f":"SUM(H72:H75)","v":0}]
[null,null,null,null,null,null,null,null,null,"debiti",null,"rate prestito"]
[null,null,"assicurazione previdenza",null,"assicurazione abitazione",null,null,null,null,null,null,"altre rate, cambiali, revolving"]
[null,null,null,null,"assicurazione infortunio",null,null,null,null,null,null,"spese contocorrente"]
[null,null,null,null,"assicurazione malattia",null,null,null,null,null,null,"spese carta di credito"]
[null,null,null,null,"assicurazione respons. Civile",null,null,null,null,null,null,"altro"]
[null,null,null,null,"polizza vita",null,null,null,null,null,null,"totale parziale debiti",null,null,{"$f":"SUM(O77:O81)","v":0},null,null,"Spese fisse a maggio"]
[null,null,null,null,"previdenza pensionistica"]
[null,null,null,null,"altre assicurazioni/previdenza",null,null,null,null,"altro",null,"mantenimento ex coniuge"]
[null,null,null,null,"totale parziale assicurazione",null,null,{"$f":"SUM(H78:H84)","v":0},null,null,null,"altro",null,null,null,null,null,{"$f":"H58+H67+H70+H76+H85+O54+O61+O66+O75+O82+O86","v":0}]
[null,null,null,null,null,null,null,null,null,null,null,"totale parziale altro",null,null,{"$f":"SUM(O84:O85)","v":0}]
[]
[]
[null,null,null,null,null,null,null,null,null,null,null,null,null,null,null,"Maggio"]
[]
[]
[null,null,"3. Entrate mensili"]
[]
[null,null,null,null,null,null,"importo €"]
[null,null,"stipendio (netto)",null,null,null,null,null,null,null,null,"4. Bilancio mensile"]
[null,null,"stipendio coniuge (netto)"]
[null,null,"figli (contribuiscono)"]
[null,null,"pensione",null,null,null,null,null,null,null,null,null,null,null,null,"Betrag €"]
[null,null,"pensione coniuge",null,null,null,null,null,null,null,null,"entrate",null,null,null,{"$f":"G112","v":0}]
[null,null,"indennità di disoccupazione",null,null,null,null,null,null,null,null,"spese fisse",null,null,null,{"$f":"R85","v":0}]
[null,null,"inserimento al minimo vitale",null,null,null,null,null,null,null,null,"spese variabili",null,null,null,{"$f":"(R42)","v":0}]
[null,null,"contributo canone locazione",null,null,null,null,null,null,null,null,"bugdet a disposizione/mancante",null,null,null,{"$f":"P99-P100-P101","v":0}]
[null,null,"assegni famigliari provincia"]
[null,null,"assegni famigliari regione"]
[null,null,"assegni famigliari stato"]
[null,null,"alimenti/mantenimento"]
[null,null,"assegni di cura"]
[null,null,"borse di studio"]
[null,null,"aiuto da terzi"]
[null,null,"reddito per locazione immobili"]
[null,null,"altri redditi (p.e. interessi, prestazioni occasionali...)"]
[null,null,"totale mese",null,null,null,{"$f":"SUM(G95:G111)","v":0}]

{"sheet":"Giugno","index":8,"n_rows":112,"n_cols":18,"rows_kept":112,"cut":false,"hidden":false,"merged":[[97,15,97,16],[98,15,98,16],[99,15,99,16],[100,15,100,16],[101,15,101,16],[2,15,3,17],[7,2,8,2],[7,3,7,4],[7,5,7,6],[7,7,7,8],[7,9,7,10],[7,11,7,12],[7,13,7,14],[7,15,7,16],[7,17,8,17],[44,15,45,17],[50,2,57,3],[50,4,50,6],[50,9,53,10],[50,11,50,13],[51,4,51,6],[51,11,51,13],[52,4,52,6],[52,11,52,13],[53,4,53,6],[54,4,54,6],[55,4,55,6],[55,9,60,10],[55,11,55,13],[56,4,56,6],[56,11,56,13],[57,4,57,6],[57,11,57,13],[58,11,58,13],[64,11,64,13],[65,4,65,6],[65,11,65,13],[67,9,74,10],[67,11,67,13],[68,2,69,3],[68,4,68,6],[68,11,68,13],[69,11,69,13],[70,11,70,13],[59,2,66,3],[59,11,59,13],[60,4,60,6],[60,11,60,13],[62,4,62,6],[62,9,65,10],[62,11,62,13],[63,4,63,6],[63,11,63,13],[64,4,64,6],[77,2,84,3],[77,4,77,6],[77,11,77,13],[78,4,78,6],[78,11,78,13],[79,4,79,6],[79,11,79,13],[80,4,80,6],[71,2,75,3],[71,4,71,6],[71,11,71,13],[72,4,72,6],[72,11,72,13],[73,4,73,6],[73,11,73,13],[74,4,74,6],[74,11,74,13],[75,4,75,6],[85,11,85,13],[88,15,89,17],[93,6,93,7],[94,6,94,7],[94,11,95,14],[95,6,95,7],[80,11,80,13],[81,4,81,6],[81,11,81,13],[81,17,83,18],[82,4,82,6],[83,4,83,6],[83,9,85,10],[83,11,83,13],[84,4,84,6],[84,11,84,13],[76,9,81,10],[76,11,76,13],[100,6,100,7],[100,11,100,14],[101,6,101,7],[101,11,101,14],[102,6,102,7],[103,6,103,7],[96,6,96,7],[97,6,97,7],[98,6,98,7],[98,11,98,14],[99,6,99,7],[99,11,99,14],[110,6,110,7],[111,2,111,5],[111,6,111,7],[104,6,104,7],[105,6,105,7],[106,6,106,7],[107,6,107,7],[108,6,108,7],[109,6,109,7]]}
[]
[]
[null,null,null,null,null,null,null,null,null,null,null,null,null,null,null,"Giugno"]
[]
[]
[null,null,"1. Spese variabili"]
[]
[null,null,"data","spese di \nmantenimento",null,"abbigliamento",null,"salute",null,"sociale e cultura",null,"mobilità",null,"spese personali",null,"abitare",null,"totale"]
[null,null,null,"spese per","€","spese per"," €","spese per"," €","spese per","€","spese per"," €","spese per"," €","spese per"," €"]
[null,null,null,null,null,null,null,null,null,null,null,null,null,null,null,null,null,{"$f":"E10+G10+I10+K10+M10+O10+Q10","v":0}]
[null,null,null,null,null,null,null,null,null,null,null,null,null,null,null,null,null,{"$f":"E11+G11+I11+K11+M11+O11+Q11","v":0}]
[null,null,null,null,null,null,null,null,null,null,null,null,null,null,null,null,null,0]
[null,null,null,null,null,null,null,null,null,null,null,null,null,null,null,null,null,0]
[null,null,null,null,null,null,null,null,null,null,null,null,null,null,null,null,null,0]
[null,null,null,null,null,null,null,null,null,null,null,null,null,null,null,null,null,0]
[null,null,null,null,null,null,null,null,null,null,null,null,null,null,null,null,null,0]
[null,null,null,null,null,null,null,null,null,null,null,null,null,null,null,null,null,0]
[null,null,null,null,null,null,null,null,null,null,null,null,null,null,null,null,null,0]
[null,null,null,null,null,null,null,null,null,null,null,null,null,null,null,null,null,0]
[null,null,null,null,null,null,null,null,null,null,null,null,null,null,null,null,null,0]
[null,null,null,null,null,null,null,null,null,null,null,null,null,null,null,null,null,0]
[null,null,null,null,null,null,null,null,null,null,null,null,null,null,null,null,null,0]
[null,null,null,null,null,null,null,null,null,null,null,null,null,null,null,null,null,0]
[null,null,null,null,null,null,null,null,null,null,null,null,null,null,null,null,null,0]
[null,null,null,null,null,null,null,null,null,null,null,null,null,null,null,null,null,0]
[null,null,null,null,null,null,null,null,null,null,null,null,null,null,null,null,null,0]
[null,null,null,null,null,null,null,null,null,null,null,null,null,null,null,null,null,0]
[null,null,null,null,null,null,null,null,null,null,null,null,null,null,null,null,null,0]
[null,null,null,null,null,null,null,null,null,null,null,null,null,null,null,null,null,0]
[null,null,null,null,null,null,null,null,null,null,null,null,null,null,null,null,null,0]
[null,null,null,null,null,null,null,null,null,null,null,null,null,null,null,null,null,0]
[null,null,null,null,null,null,null,null,null,null,null,null,null,null,null,null,null,0]
[null,null,null,null,null,null,null,null,null,null,null,null,null,null,null,null,null,0]
[null,null,null,null,null,null,null,null,null,null,null,null,null,null,null,null,null,0]
[null,null,null,null,null,null,null,null,null,null,null,null,null,null,null,null,null,0]
[null,null,null,null,null,null,null,null,null,null,null,null,null,null,null,null,null,0]
[null,null,null,null,null,null,null,null,null,null,null,null,null,null,null,null,null,0]
[null,null,null,null,null,null,null,null,null,null,null,null,null,null,null,null,null,0]
[null,null,null,null,null,null,null,null,null,null,null,null,null,null,null,null,null,0]
[null,null,null,null,null,null,null,null,null,null,null,null,null,null,null,null,null,0]
[null,null,null,null,null,null,null,null,null,null,null,null,null,null,null,null,null,0]
[null,null,null,"totale",{"$f":"SUM(E10:E41)","v":0},"totale",{"$f":"SUM(G10:G41)","v":0},"totale",{"$f":"SUM(I10:I41)","v":0},"totale",{"$f":"SUM(K10:K41)","v":0},"totale",{"$f":"SUM(M10:M41)","v":0},"totale",{"$f":"SUM(O10:O41)","v":0},"totale",{"$f":"SUM(Q10:Q41)","v":0},0]
[]
[]
[null,null,null,null,null,null,null,null,null,null,null,null,null,null,null,"Giugno"]
[]
[]
[null,null,"2. Spese fisse"]
[]
[null,null,null,null,null,null,null,"importo €",null,null,null,null,null,null,"importo €"]
[null,null,"abitare",null,"affitto",null,null,null,null,"risparmio",null,"mutuo risparmio, casa, azioni, obbligazioni"]
[null,null,null,null,"spese condominiali",null,null,null,null,null,null,"libretto di risparmio"]
[null,null,null,null,"spese di manutenzione",null,null,null,null,null,null,"altre forme di risparmio"]
[null,null,null,null,"corrente, canone TV",null,null,null,null,null,null,"totale parziale risparmio",null,null,{"$f":"SUM(O51:O53)","v":0}]
[null,null,null,null,"(tele)riscaldamento, gas, legna ecc."]
[null,null,null,null,"acqua, immondizia",null,null,null,null,"abbonamenti e \ntesseramenti",null,"abbonamento giornali"]
[null,null,null,null,"rata mutuo immobile",null,null,null,null,null,null,"tesseramenti"]
[null,null,null,null,"totale parziale abitare",null,null,{"$f":"SUM(H51:H57)","v":0},null,null,null,"abbonamento al teatro"]
[null,null,null,null,null,null,null,null,null,null,null,"carte stagionali (skipass)"]
[null,null,"mobilità",null,"autoveicolo - assicurazione",null,null,null,null,null,null,"altro"]
[null,null,null,null,"autoveicolo - bollo",null,null,null,null,null,null,"totale parziale abbonamenti",null,null,{"$f":"SUM(O56:O60)","v":0}]
[null,null,null,null,"moto - assicurazione"]
[null,null,null,null,"moto - bollo",null,null,null,null,"imposte, tributi, tasse",null,"imposta immobiliare"]
[null,null,null,null,"riparazione, revisione",null,null,null,null,null,null,"diversi tributi/tasse"]
[null,null,null,null,"rata leasing",null,null,null,null,null,null,"altro"]
[null,null,null,null,"contributo ACI",null,null,null,null,null,null,"totale parziale imposte",null,null,{"$f":"SUM(O63:O65)","v":0}]
[null,null,null,null,"totale parziale mobilità",null,null,{"$f":"SUM(H60:H66)","v":0}]
[null,null,null,null,null,null,null,null,null,"bambini",null,"alimenti"]
[null,null,"mezzi pubblici",null,"abbonamento annuale",null,null,null,null,null,null,"babysitter"]
[null,null,null,null,"totale parziale mezzi pubblici",null,null,{"$f":"H69","v":0},null,null,null,"asilo, scuola"]
[null,null,null,null,null,null,null,null,null,null,null,"tasse universitarie"]
[null,null,"comunicazione",null,"telefono fisso",null,null,null,null,null,null,"mensa scolastica"]
[null,null,null,null,"cellulare",null,null,null,null,null,null,"paghetta"]
[null,null,null,null,"internet",null,null,null,null,null,null,"scuola di musica, sport, ecc."]
[null,null,null,null,"Pay-TV, Sky…",null,null,null,null,null,null,"totale parziale bambini",null,null,{"$f":"SUM(O68:O74)","v":0}]
[null,null,null,null,"totale parziale comunicazione",null,null,{"$f":"SUM(H72:H75)","v":0}]
[null,null,null,null,null,null,null,null,null,"debiti",null,"rate prestito"]
[null,null,"assicurazione previdenza",null,"assicurazione abitazione",null,null,null,null,null,null,"altre rate, cambiali, revolving"]
[null,null,null,null,"assicurazione infortunio",null,null,null,null,null,null,"spese contocorrente"]
[null,null,null,null,"assicurazione malattia",null,null,null,null,null,null,"spese carta di credito"]
[null,null,null,null,"assicurazione respons. Civile",null,null,null,null,null,null,"altro"]
[null,null,null,null,"polizza vita",null,null,null,null,null,null,"totale parziale debiti",null,null,{"$f":"SUM(O77:O81)","v":0},null,null,"Spese fisse a giugno"]
[null,null,null,null,"previdenza pensionistica"]
[null,null,null,null,"altre assicurazioni/previdenza",null,null,null,null,"altro",null,"mantenimento ex coniuge"]
[null,null,null,null,"totale parziale assicurazione",null,null,{"$f":"SUM(H78:H84)","v":0},null,null,null,"altro",null,null,null,null,null,{"$f":"H58+H67+H70+H76+H85+O54+O61+O66+O75+O82+O86","v":0}]
[null,null,null,null,null,null,null,null,null,null,null,"totale parziale altro",null,null,{"$f":"SUM(O84:O85)","v":0}]
[]
[]
[null,null,null,null,null,null,null,null,null,null,null,null,null,null,null,"Giugno"]
[]
[]
[null,null,"3. Entrate mensili"]
[]
[null,null,null,null,null,null,"importo €"]
[null,null,"stipendio (netto)",null,null,null,null,null,null,null,null,"4. Bilancio mensile"]
[null,null,"stipendio coniuge (netto)"]
[null,null,"figli (contribuiscono)"]
[null,null,"pensione",null,null,null,null,null,null,null,null,null,null,null,null,"Betrag €"]
[null,null,"pensione coniuge",null,null,null,null,null,null,null,null,"entrate",null,null,null,{"$f":"G112","v":0}]
[null,null,"indennità di disoccupazione",null,null,null,null,null,null,null,null,"spese fisse",null,null,null,{"$f":"R85","v":0}]
[null,null,"inserimento al minimo vitale",null,null,null,null,null,null,null,null,"spese variabili",null,null,null,{"$f":"(R42)","v":0}]
[null,null,"contributo canone locazione",null,null,null,null,null,null,null,null,"bugdet a disposizione/mancante",null,null,null,{"$f":"P99-P100-P101","v":0}]
[null,null,"assegni famigliari provincia"]
[null,null,"assegni famigliari regione"]
[null,null,"assegni famigliari stato"]
[null,null,"alimenti/mantenimento"]
[null,null,"assegni di cura"]
[null,null,"borse di studio"]
[null,null,"aiuto da terzi"]
[null,null,"reddito per locazione immobili"]
[null,null,"altri redditi (p.e. interessi, prestazioni occasionali...)"]
[null,null,"totale mese",null,null,null,{"$f":"SUM(G95:G111)","v":0}]

{"sheet":"Luglio","index":9,"n_rows":112,"n_cols":18,"rows_kept":112,"cut":false,"hidden":false,"merged":[[97,15,97,16],[98,15,98,16],[99,15,99,16],[100,15,100,16],[101,15,101,16],[2,15,3,17],[7,2,8,2],[7,3,7,4],[7,5,7,6],[7,7,7,8],[7,9,7,10],[7,11,7,12],[7,13,7,14],[7,15,7,16],[7,17,8,17],[44,15,45,17],[50,2,57,3],[50,4,50,6],[50,9,53,10],[50,11,50,13],[51,4,51,6],[51,11,51,13],[52,4,52,6],[52,11,52,13],[53,4,53,6],[54,4,54,6],[55,4,55,6],[55,9,60,10],[55,11,55,13],[56,4,56,6],[56,11,56,13],[57,4,57,6],[57,11,57,13],[58,11,58,13],[64,11,64,13],[65,4,65,6],[65,11,65,13],[67,9,74,10],[67,11,67,13],[68,2,69,3],[68,4,68,6],[68,11,68,13],[69,11,69,13],[70,11,70,13],[59,2,66,3],[59,11,59,13],[60,4,60,6],[60,11,60,13],[62,4,62,6],[62,9,65,10],[62,11,62,13],[63,4,63,6],[63,11,63,13],[64,4,64,6],[77,2,84,3],[77,4,77,6],[77,11,77,13],[78,4,78,6],[78,11,78,13],[79,4,79,6],[79,11,79,13],[80,4,80,6],[71,2,75,3],[71,4,71,6],[71,11,71,13],[72,4,72,6],[72,11,72,13],[73,4,73,6],[73,11,73,13],[74,4,74,6],[74,11,74,13],[75,4,75,6],[85,11,85,13],[88,15,89,17],[93,6,93,7],[94,6,94,7],[94,11,95,14],[95,6,95,7],[80,11,80,13],[81,4,81,6],[81,11,81,13],[81,17,83,18],[82,4,82,6],[83,4,83,6],[83,9,85,10],[83,11,83,13],[84,4,84,6],[84,11,84,13],[76,9,81,10],[76,11,76,13],[100,6,100,7],[100,11,100,14],[101,6,101,7],[101,11,101,14],[102,6,102,7],[103,6,103,7],[96,6,96,7],[97,6,97,7],[98,6,98,7],[98,11,98,14],[99,6,99,7],[99,11,99,14],[110,6,110,7],[111,2,111,5],[111,6,111,7],[104,6,104,7],[105,6,105,7],[106,6,106,7],[107,6,107,7],[108,6,108,7],[109,6,109,7]]}
[]
[]
[null,null,null,null,null,null,null,null,null,null,null,null,null,null,null,"Luglio"]
[]
[]
[null,null,"1. Spese variabili"]
[]
[null,null,"data","spese di \nmantenimento",null,"abbigliamento",null,"salute",null,"sociale e cultura",null,"mobilità",null,"spese personali",null,"abitare",null,"totale"]
[null,null,null,"spese per","€","spese per"," €","spese per"," €","spese per","€","spese per"," €","spese per"," €","spese per"," €"]
[null,null,null,null,null,null,null,null,null,null,null,null,null,null,null,null,null,{"$f":"E10+G10+I10+K10+M10+O10+Q10","v":0}]
[null,null,null,null,null,null,null,null,null,null,null,null,null,null,null,null,null,{"$f":"E11+G11+I11+K11+M11+O11+Q11","v":0}]
[null,null,null,null,null,null,null,null,null,null,null,null,null,null,null,null,null,0]
[null,null,null,null,null,null,null,null,null,null,null,null,null,null,null,null,null,0]
[null,null,null,null,null,null,null,null,null,null,null,null,null,null,null,null,null,0]
[null,null,null,null,null,null,null,null,null,null,null,null,null,null,null,null,null,0]
[null,null,null,null,null,null,null,null,null,null,null,null,null,null,null,null,null,0]
[null,null,null,null,null,null,null,null,null,null,null,null,null,null,null,null,null,0]
[null,null,null,null,null,null,null,null,null,null,null,null,null,null,null,null,null,0]
[null,null,null,null,null,null,null,null,null,null,null,null,null,null,null,null,null,0]
[null,null,null,null,null,null,null,null,null,null,null,null,null,null,null,null,null,0]
[null,null,null,null,null,null,null,null,null,null,null,null,null,null,null,null,null,0]
[null,null,null,null,null,null,null,null,null,null,null,null,null,null,null,null,null,0]
[null,null,null,null,null,null,null,null,null,null,null,null,null,null,null,null,null,0]
[null,null,null,null,null,null,null,null,null,null,null,null,null,null,null,null,null,0]
[null,null,null,null,null,null,null,null,null,null,null,null,null,null,null,null,null,0]
[null,null,null,null,null,null,null,null,null,null,null,null,null,null,null,null,null,0]
[null,null,null,null,null,null,null,null,null,null,null,null,null,null,null,null,null,0]
[null,null,null,null,null,null,null,null,null,null,null,null,null,null,null,null,null,0]
[null,null,null,null,null,null,null,null,null,null,null,null,null,null,null,null,null,0]
[null,null,null,null,null,null,null,null,null,null,null,null,null,null,null,null,null,0]
[null,null,null,null,null,null,null,null,null,null,null,null,null,null,null,null,null,0]
[null,null,null,null,null,null,null,null,null,null,null,null,null,null,null,null,null,0]
[null,null,null,null,null,null,null,null,null,null,null,null,null,null,null,null,null,0]
[null,null,null,null,null,null,null,null,null,null,null,null,null,null,null,null,null,0]
[null,null,null,null,null,null,null,null,null,null,null,null,null,null,null,null,null,0]
[null,null,null,null,null,null,null,null,null,null,null,null,null,null,null,null,null,0]
[null,null,null,null,null,null,null,null,null,null,null,null,null,null,null,null,null,0]
[null,null,null,null,null,null,null,null,null,null,null,null,null,null,null,null,null,0]
[null,null,null,null,null,null,null,null,null,null,null,null,null,null,null,null,null,0]
[null,null,null,null,null,null,null,null,null,null,null,null,null,null,null,null,null,0]
[null,null,null,null,null,null,null,null,null,null,null,null,null,null,null,null,null,0]
[null,null,null,"totale",{"$f":"SUM(E10:E41)","v":0},"totale",{"$f":"SUM(G10:G41)","v":0},"totale",{"$f":"SUM(I10:I41)","v":0},"totale",{"$f":"SUM(K10:K41)","v":0},"totale",{"$f":"SUM(M10:M41)","v":0},"totale",{"$f":"SUM(O10:O41)","v":0},"totale",{"$f":"SUM(Q10:Q41)","v":0},0]
[]
[]
[null,null,null,null,null,null,null,null,null,null,null,null,null,null,null,"Luglio"]
[]
[]
[null,null,"2. Spese fisse"]
[]
[null,null,null,null,null,null,null,"importo €",null,null,null,null,null,null,"importo €"]
[null,null,"abitare",null,"affitto",null,null,null,null,"risparmio",null,"mutuo risparmio, casa, azioni, obbligazioni"]
[null,null,null,null,"spese condominiali",null,null,null,null,null,null,"libretto di risparmio"]
[null,null,null,null,"spese di manutenzione",null,null,null,null,null,null,"altre forme di risparmio"]
[null,null,null,null,"corrente, canone TV",null,null,null,null,null,null,"totale parziale risparmio",null,null,{"$f":"SUM(O51:O53)","v":0}]
[null,null,null,null,"(tele)riscaldamento, gas, legna ecc."]
[null,null,null,null,"acqua, immondizia",null,null,null,null,"abbonamenti e \ntesseramenti",null,"abbonamento giornali"]
[null,null,null,null,"rata mutuo immobile",null,null,null,null,null,null,"tesseramenti"]
[null,null,null,null,"totale parziale abitare",null,null,{"$f":"SUM(H51:H57)","v":0},null,null,null,"abbonamento al teatro"]
[null,null,null,null,null,null,null,null,null,null,null,"carte stagionali (skipass)"]
[null,null,"mobilità",null,"autoveicolo - assicurazione",null,null,null,null,null,null,"altro"]
[null,null,null,null,"autoveicolo - bollo",null,null,null,null,null,null,"totale parziale abbonamenti",null,null,{"$f":"SUM(O56:O60)","v":0}]
[null,null,null,null,"moto - assicurazione"]
[null,null,null,null,"moto - bollo",null,null,null,null,"imposte, tributi, tasse",null,"imposta immobiliare"]
[null,null,null,null,"riparazione, revisione",null,null,null,null,null,null,"diversi tributi/tasse"]
[null,null,null,null,"rata leasing",null,null,null,null,null,null,"altro"]
[null,null,null,null,"contributo ACI",null,null,null,null,null,null,"totale parziale imposte",null,null,{"$f":"SUM(O63:O65)","v":0}]
[null,null,null,null,"totale parziale mobilità",null,null,{"$f":"SUM(H60:H66)","v":0}]
[null,null,null,null,null,null,null,null,null,"bambini",null,"alimenti"]
[null,null,"mezzi pubblici",null,"abbonamento annuale",null,null,null,null,null,null,"babysitter"]
[null,null,null,null,"totale parziale mezzi pubblici",null,null,{"$f":"H69","v":0},null,null,null,"asilo, scuola"]
[null,null,null,null,null,null,null,null,null,null,null,"tasse universitarie"]
[null,null,"comunicazione",null,"telefono fisso",null,null,null,null,null,null,"mensa scolastica"]
[null,null,null,null,"cellulare",null,null,null,null,null,null,"paghetta"]
[null,null,null,null,"internet",null,null,null,null,null,null,"scuola di musica, sport, ecc."]
[null,null,null,null,"Pay-TV, Sky…",null,null,null,null,null,null,"totale parziale bambini",null,null,{"$f":"SUM(O68:O74)","v":0}]
[null,null,null,null,"totale parziale comunicazione",null,null,{"$f":"SUM(H72:H75)","v":0}]
[null,null,null,null,null,null,null,null,null,"debiti",null,"rate prestito"]
[null,null,"assicurazione previdenza",null,"assicurazione abitazione",null,null,null,null,null,null,"altre rate, cambiali, revolving"]
[null,null,null,null,"assicurazione infortunio",null,null,null,null,null,null,"spese contocorrente"]
[null,null,null,null,"assicurazione malattia",null,null,null,null,null,null,"spese carta di credito"]
[null,null,null,null,"assicurazione respons. Civile",null,null,null,null,null,null,"altro"]
[null,null,null,null,"polizza vita",null,null,null,null,null,null,"totale parziale debiti",null,null,{"$f":"SUM(O77:O81)","v":0},null,null,"Spese fisse a luglio"]
[null,null,null,null,"previdenza pensionistica"]
[null,null,null,null,"altre assicurazioni/previdenza",null,null,null,null,"altro",null,"mantenimento ex coniuge"]
[null,null,null,null,"totale parziale assicurazione",null,null,{"$f":"SUM(H78:H84)","v":0},null,null,null,"altro",null,null,null,null,null,{"$f":"H58+H67+H70+H76+H85+O54+O61+O66+O75+O82+O86","v":0}]
[null,null,null,null,null,null,null,null,null,null,null,"totale parziale altro",null,null,{"$f":"SUM(O84:O85)","v":0}]
[]
[]
[null,null,null,null,null,null,null,null,null,null,null,null,null,null,null,"Luglio"]
[]
[]
[null,null,"3. Entrate mensili"]
[]
[null,null,null,null,null,null,"importo €"]
[null,null,"stipendio (netto)",null,null,null,null,null,null,null,null,"4. Bilancio mensile"]
[null,null,"stipendio coniuge (netto)"]
[null,null,"figli (contribuiscono)"]
[null,null,"pensione",null,null,null,null,null,null,null,null,null,null,null,null,"Betrag €"]
[null,null,"pensione coniuge",null,null,null,null,null,null,null,null,"entrate",null,null,null,{"$f":"G112","v":0}]
[null,null,"indennità di disoccupazione",null,null,null,null,null,null,null,null,"spese fisse",null,null,null,{"$f":"R85","v":0}]
[null,null,"inserimento al minimo vitale",null,null,null,null,null,null,null,null,"spese variabili",null,null,null,{"$f":"(R42)","v":0}]
[null,null,"contributo canone locazione",null,null,null,null,null,null,null,null,"bugdet a disposizione/mancante",null,null,null,{"$f":"P99-P100-P101","v":0}]
[null,null,"assegni famigliari provincia"]
[null,null,"assegni famigliari regione"]
[null,null,"assegni famigliari stato"]
[null,null,"alimenti/mantenimento"]
[null,null,"assegni di cura"]
[null,null,"borse di studio"]
[null,null,"aiuto da terzi"]
[null,null,"reddito per locazione immobili"]
[null,null,"altri redditi (p.e. interessi, prestazioni occasionali...)"]
[null,null,"totale mese",null,null,null,{"$f":"SUM(G95:G111)","v":0}]

{"sheet":"Agosto","index":10,"n_rows":112,"n_cols":18,"rows_kept":112,"cut":false,"hidden":false,"merged":[[97,15,97,16],[98,15,98,16],[99,15,99,16],[100,15,100,16],[101,15,101,16],[2,15,3,17],[7,2,8,2],[7,3,7,4],[7,5,7,6],[7,7,7,8],[7,9,7,10],[7,11,7,12],[7,13,7,14],[7,15,7,16],[7,17,8,17],[44,15,45,17],[50,2,57,3],[50,4,50,6],[50,9,53,10],[50,11,50,13],[51,4,51,6],[51,11,51,13],[52,4,52,6],[52,11,52,13],[53,4,53,6],[54,4,54,6],[55,4,55,6],[55,9,60,10],[55,11,55,13],[56,4,56,6],[56,11,56,13],[57,4,57,6],[57,11,57,13],[58,11,58,13],[64,11,64,13],[65,4,65,6],[65,11,65,13],[67,9,74,10],[67,11,67,13],[68,2,69,3],[68,4,68,6],[68,11,68,13],[69,11,69,13],[70,11,70,13],[59,2,66,3],[59,11,59,13],[60,4,60,6],[60,11,60,13],[62,4,62,6],[62,9,65,10],[62,11,62,13],[63,4,63,6],[63,11,63,13],[64,4,64,6],[77,2,84,3],[77,4,77,6],[77,11,77,13],[78,4,78,6],[78,11,78,13],[79,4,79,6],[79,11,79,13],[80,4,80,6],[71,2,75,3],[71,4,71,6],[71,11,71,13],[72,4,72,6],[72,11,72,13],[73,4,73,6],[73,11,73,13],[74,4,74,6],[74,11,74,13],[75,4,75,6],[85,11,85,13],[88,15,89,17],[93,6,93,7],[94,6,94,7],[94,11,95,14],[95,6,95,7],[80,11,80,13],[81,4,81,6],[81,11,81,13],[81,17,83,18],[82,4,82,6],[83,4,83,6],[83,9,85,10],[83,11,83,13],[84,4,84,6],[84,11,84,13],[76,9,81,10],[76,11,76,13],[100,6,100,7],[100,11,100,14],[101,6,101,7],[101,11,101,14],[102,6,102,7],[103,6,103,7],[96,6,96,7],[97,6,97,7],[98,6,98,7],[98,11,98,14],[99,6,99,7],[99,11,99,14],[110,6,110,7],[111,2,111,5],[111,6,111,7],[104,6,104,7],[105,6,105,7],[106,6,106,7],[107,6,107,7],[108,6,108,7],[109,6,109,7]]}
[]
[]
[null,null,null,null,null,null,null,null,null,null,null,null,null,null,null,"Agosto"]
[]
[]
[null,null,"1. Spese variabili"]
[]
[null,null,"data","spese di \nmantenimento",null,"abbigliamento",null,"salute",null,"sociale e cultura",null,"mobilità",null,"spese personali",null,"abitare",null,"totale"]
[null,null,null,"spese per","€","spese per"," €","spese per"," €","spese per","€","spese per"," €","spese per"," €","spese per"," €"]
[null,null,null,null,null,null,null,null,null,null,null,null,null,null,null,null,null,{"$f":"E10+G10+I10+K10+M10+O10+Q10","v":0}]
[null,null,null,null,null,null,null,null,null,null,null,null,null,null,null,null,null,{"$f":"E11+G11+I11+K11+M11+O11+Q11","v":0}]
[null,null,null,null,null,null,null,null,null,null,null,null,null,null,null,null,null,0]
[null,null,null,null,null,null,null,null,null,null,null,null,null,null,null,null,null,0]
[null,null,null,null,null,null,null,null,null,null,null,null,null,null,null,null,null,0]
[null,null,null,null,null,null,null,null,null,null,null,null,null,null,null,null,null,0]
[null,null,null,null,null,null,null,null,null,null,null,null,null,null,null,null,null,0]
[null,null,null,null,null,null,null,null,null,null,null,null,null,null,null,null,null,0]
[null,null,null,null,null,null,null,null,null,null,null,null,null,null,null,null,null,0]
[null,null,null,null,null,null,null,null,null,null,null,null,null,null,null,null,null,0]
[null,null,null,null,null,null,null,null,null,null,null,null,null,null,null,null,null,0]
[null,null,null,null,null,null,null,null,null,null,null,null,null,null,null,null,null,0]
[null,null,null,null,null,null,null,null,null,null,null,null,null,null,null,null,null,0]
[null,null,null,null,null,null,null,null,null,null,null,null,null,null,null,null,null,0]
[null,null,null,null,null,null,null,null,null,null,null,null,null,null,null,null,null,0]
[null,null,null,null,null,null,null,null,null,null,null,null,null,null,null,null,null,0]
[null,null,null,null,null,null,null,null,null,null,null,null,null,null,null,null,null,0]
[null,null,null,null,null,null,null,null,null,null,null,null,null,null,null,null,null,0]
[null,null,null,null,null,null,null,null,null,null,null,null,null,null,null,null,null,0]
[null,null,null,null,null,null,null,null,null,null,null,null,null,null,null,null,null,0]
[null,null,null,null,null,null,null,null,null,null,null,null,null,null,null,null,null,0]
[null,null,null,null,null,null,null,null,null,null,null,null,null,null,null,null,null,0]
[null,null,null,null,null,null,null,null,null,null,null,null,null,null,null,null,null,0]
[null,null,null,null,null,null,null,null,null,null,null,null,null,null,null,null,null,0]
[null,null,null,null,null,null,null,null,null,null,null,null,null,null,null,null,null,0]
[null,null,null,null,null,null,null,null,null,null,null,null,null,null,null,null,null,0]
[null,null,null,null,null,null,null,null,null,null,null,null,null,null,null,null,null,0]
[null,null,null,null,null,null,null,null,null,null,null,null,null,null,null,null,null,0]
[null,null,null,null,null,null,null,null,null,null,null,null,null,null,null,null,null,0]
[null,null,null,null,null,null,null,null,null,null,null,null,null,null,null,null,null,0]
[null,null,null,null,null,null,null,null,null,null,null,null,null,null,null,null,null,0]
[null,null,null,null,null,null,null,null,null,null,null,null,null,null,null,null,null,0]
[null,null,null,"totale",{"$f":"SUM(E10:E41)","v":0},"totale",{"$f":"SUM(G10:G41)","v":0},"totale",{"$f":"SUM(I10:I41)","v":0},"totale",{"$f":"SUM(K10:K41)","v":0},"totale",{"$f":"SUM(M10:M41)","v":0},"totale",{"$f":"SUM(O10:O41)","v":0},"totale",{"$f":"SUM(Q10:Q41)","v":0},0]
[]
[]
[null,null,null,null,null,null,null,null,null,null,null,null,null,null,null,"Agosto"]
[]
[]
[null,null,"2. Spese fisse"]
[]
[null,null,null,null,null,null,null,"importo €",null,null,null,null,null,null,"importo €"]
[null,null,"abitare",null,"affitto",null,null,null,null,"risparmio",null,"mutuo risparmio, casa, azioni, obbligazioni"]
[null,null,null,null,"spese condominiali",null,null,null,null,null,null,"libretto di risparmio"]
[null,null,null,null,"spese di manutenzione",null,null,null,null,null,null,"altre forme di risparmio"]
[null,null,null,null,"corrente, canone TV",null,null,null,null,null,null,"totale parziale risparmio",null,null,{"$f":"SUM(O51:O53)","v":0}]
[null,null,null,null,"(tele)riscaldamento, gas, legna ecc."]
[null,null,null,null,"acqua, immondizia",null,null,null,null,"abbonamenti e \ntesseramenti",null,"abbonamento giornali"]
[null,null,null,null,"rata mutuo immobile",null,null,null,null,null,null,"tesseramenti"]
[null,null,null,null,"totale parziale abitare",null,null,{"$f":"SUM(H51:H57)","v":0},null,null,null,"abbonamento al teatro"]
[null,null,null,null,null,null,null,null,null,null,null,"carte stagionali (skipass)"]
[null,null,"mobilità",null,"autoveicolo - assicurazione",null,null,null,null,null,null,"altro"]
[null,null,null,null,"autoveicolo - bollo",null,null,null,null,null,null,"totale parziale abbonamenti",null,null,{"$f":"SUM(O56:O60)","v":0}]
[null,null,null,null,"moto - assicurazione"]
[null,null,null,null,"moto - bollo",null,null,null,null,"imposte, tributi, tasse",null,"imposta immobiliare"]
[null,null,null,null,"riparazione, revisione",null,null,null,null,null,null,"diversi tributi/tasse"]
[null,null,null,null,"rata leasing",null,null,null,null,null,null,"altro"]
[null,null,null,null,"contributo ACI",null,null,null,null,null,null,"totale parziale imposte",null,null,{"$f":"SUM(O63:O65)","v":0}]
[null,null,null,null,"totale parziale mobilità",null,null,{"$f":"SUM(H60:H66)","v":0}]
[null,null,null,null,null,null,null,null,null,"bambini",null,"alimenti"]
[null,null,"mezzi pubblici",null,"abbonamento annuale",null,null,null,null,null,null,"babysitter"]
[null,null,null,null,"totale parziale mezzi pubblici",null,null,{"$f":"H69","v":0},null,null,null,"asilo, scuola"]
[null,null,null,null,null,null,null,null,null,null,null,"tasse universitarie"]
[null,null,"comunicazione",null,"telefono fisso",null,null,null,null,null,null,"mensa scolastica"]
[null,null,null,null,"cellulare",null,null,null,null,null,null,"paghetta"]
[null,null,null,null,"internet",null,null,null,null,null,null,"scuola di musica, sport, ecc."]
[null,null,null,null,"Pay-TV, Sky…",null,null,null,null,null,null,"totale parziale bambini",null,null,{"$f":"SUM(O68:O74)","v":0}]
[null,null,null,null,"totale parziale comunicazione",null,null,{"$f":"SUM(H72:H75)","v":0}]
[null,null,null,null,null,null,null,null,null,"debiti",null,"rate prestito"]
[null,null,"assicurazione previdenza",null,"assicurazione abitazione",null,null,null,null,null,null,"altre rate, cambiali, revolving"]
[null,null,null,null,"assicurazione infortunio",null,null,null,null,null,null,"spese contocorrente"]
[null,null,null,null,"assicurazione malattia",null,null,null,null,null,null,"spese carta di credito"]
[null,null,null,null,"assicurazione respons. Civile",null,null,null,null,null,null,"altro"]
[null,null,null,null,"polizza vita",null,null,null,null,null,null,"totale parziale debiti",null,null,{"$f":"SUM(O77:O81)","v":0},null,null,"Spese fisse in agosto"]
[null,null,null,null,"previdenza pensionistica"]
[null,null,null,null,"altre assicurazioni/previdenza",null,null,null,null,"altro",null,"mantenimento ex coniuge"]
[null,null,null,null,"totale parziale assicurazione",null,null,{"$f":"SUM(H78:H84)","v":0},null,null,null,"altro",null,null,null,null,null,{"$f":"H58+H67+H70+H76+H85+O54+O61+O66+O75+O82+O86","v":0}]
[null,null,null,null,null,null,null,null,null,null,null,"totale parziale altro",null,null,{"$f":"SUM(O84:O85)","v":0}]
[]
[]
[null,null,null,null,null,null,null,null,null,null,null,null,null,null,null,"Agosto"]
[]
[]
[null,null,"3. Entrate mensili"]
[]
[null,null,null,null,null,null,"importo €"]
[null,null,"stipendio (netto)",null,null,null,null,null,null,null,null,"4. Bilancio mensile"]
[null,null,"stipendio coniuge (netto)"]
[null,null,"figli (contribuiscono)"]
[null,null,"pensione",null,null,null,null,null,null,null,null,null,null,null,null,"Betrag €"]
[null,null,"pensione coniuge",null,null,null,null,null,null,null,null,"entrate",null,null,null,{"$f":"G112","v":0}]
[null,null,"indennità di disoccupazione",null,null,null,null,null,null,null,null,"spese fisse",null,null,null,{"$f":"R85","v":0}]
[null,null,"inserimento al minimo vitale",null,null,null,null,null,null,null,null,"spese variabili",null,null,null,{"$f":"(R42)","v":0}]
[null,null,"contributo canone locazione",null,null,null,null,null,null,null,null,"bugdet a disposizione/mancante",null,null,null,{"$f":"P99-P100-P101","v":0}]
[null,null,"assegni famigliari provincia"]
[null,null,"assegni famigliari regione"]
[null,null,"assegni famigliari stato"]
[null,null,"alimenti/mantenimento"]
[null,null,"assegni di cura"]
[null,null,"borse di studio"]
[null,null,"aiuto da terzi"]
[null,null,"reddito per locazione immobili"]
[null,null,"altri redditi (p.e. interessi, prestazioni occasionali...)"]
[null,null,"totale mese",null,null,null,{"$f":"SUM(G95:G111)","v":0}]

{"sheet":"Settembre","index":11,"n_rows":112,"n_cols":18,"rows_kept":112,"cut":false,"hidden":false,"merged":[[97,15,97,16],[98,15,98,16],[99,15,99,16],[100,15,100,16],[101,15,101,16],[2,15,3,17],[7,2,8,2],[7,3,7,4],[7,5,7,6],[7,7,7,8],[7,9,7,10],[7,11,7,12],[7,13,7,14],[7,15,7,16],[7,17,8,17],[44,15,45,17],[50,2,57,3],[50,4,50,6],[50,9,53,10],[50,11,50,13],[51,4,51,6],[51,11,51,13],[52,4,52,6],[52,11,52,13],[53,4,53,6],[54,4,54,6],[55,4,55,6],[55,9,60,10],[55,11,55,13],[56,4,56,6],[56,11,56,13],[57,4,57,6],[57,11,57,13],[58,11,58,13],[64,11,64,13],[65,4,65,6],[65,11,65,13],[67,9,74,10],[67,11,67,13],[68,2,69,3],[68,4,68,6],[68,11,68,13],[69,11,69,13],[70,11,70,13],[59,2,66,3],[59,11,59,13],[60,4,60,6],[60,11,60,13],[62,4,62,6],[62,9,65,10],[62,11,62,13],[63,4,63,6],[63,11,63,13],[64,4,64,6],[77,2,84,3],[77,4,77,6],[77,11,77,13],[78,4,78,6],[78,11,78,13],[79,4,79,6],[79,11,79,13],[80,4,80,6],[71,2,75,3],[71,4,71,6],[71,11,71,13],[72,4,72,6],[72,11,72,13],[73,4,73,6],[73,11,73,13],[74,4,74,6],[74,11,74,13],[75,4,75,6],[85,11,85,13],[88,15,89,17],[93,6,93,7],[94,6,94,7],[94,11,95,14],[95,6,95,7],[80,11,80,13],[81,4,81,6],[81,11,81,13],[81,17,83,18],[82,4,82,6],[83,4,83,6],[83,9,85,10],[83,11,83,13],[84,4,84,6],[84,11,84,13],[76,9,81,10],[76,11,76,13],[100,6,100,7],[100,11,100,14],[101,6,101,7],[101,11,101,14],[102,6,102,7],[103,6,103,7],[96,6,96,7],[97,6,97,7],[98,6,98,7],[98,11,98,14],[99,6,99,7],[99,11,99,14],[110,6,110,7],[111,2,111,5],[111,6,111,7],[104,6,104,7],[105,6,105,7],[106,6,106,7],[107,6,107,7],[108,6,108,7],[109,6,109,7]]}
[]
[]
[null,null,null,null,null,null,null,null,null,null,null,null,null,null,null,"Settembre"]
[]
[]
[null,null,"1. Spese variabili"]
[]
[null,null,"data","spese di \nmantenimento",null,"abbigliamento",null,"salute",null,"sociale e cultura",null,"mobilità",null,"spese personali",null,"abitare",null,"totale"]
[null,null,null,"spese per","€","spese per"," €","spese per"," €","spese per","€","spese per"," €","spese per"," €","spese per"," €"]
[null,null,null,null,null,null,null,null,null,null,null,null,null,null,null,null,null,{"$f":"E10+G10+I10+K10+M10+O10+Q10","v":0}]
[null,null,null,null,null,null,null,null,null,null,null,null,null,null,null,null,null,{"$f":"E11+G11+I11+K11+M11+O11+Q11","v":0}]
[null,null,null,null,null,null,null,null,null,null,null,null,null,null,null,null,null,0]
[null,null,null,null,null,null,null,null,null,null,null,null,null,null,null,null,null,0]
[null,null,null,null,null,null,null,null,null,null,null,null,null,null,null,null,null,0]
[null,null,null,null,null,null,null,null,null,null,null,null,null,null,null,null,null,0]
[null,null,null,null,null,null,null,null,null,null,null,null,null,null,null,null,null,0]
[null,null,null,null,null,null,null,null,null,null,null,null,null,null,null,null,null,0]
[null,null,null,null,null,null,null,null,null,null,null,null,null,null,null,null,null,0]
[null,null,null,null,null,null,null,null,null,null,null,null,null,null,null,null,null,0]
[null,null,null,null,null,null,null,null,null,null,null,null,null,null,null,null,null,0]
[null,null,null,null,null,null,null,null,null,null,null,null,null,null,null,null,null,0]
[null,null,null,null,null,null,null,null,null,null,null,null,null,null,null,null,null,0]
[null,null,null,null,null,null,null,null,null,null,null,null,null,null,null,null,null,0]
[null,null,null,null,null,null,null,null,null,null,null,null,null,null,null,null,null,0]
[null,null,null,null,null,null,null,null,null,null,null,null,null,null,null,null,null,0]
[null,null,null,null,null,null,null,null,null,null,null,null,null,null,null,null,null,0]
[null,null,null,null,null,null,null,null,null,null,null,null,null,null,null,null,null,0]
[null,null,null,null,null,null,null,null,null,null,null,null,null,null,null,null,null,0]
[null,null,null,null,null,null,null,null,null,null,null,null,null,null,null,null,null,0]
[null,null,null,null,null,null,null,null,null,null,null,null,null,null,null,null,null,0]
[null,null,null,null,null,null,null,null,null,null,null,null,null,null,null,null,null,0]
[null,null,null,null,null,null,null,null,null,null,null,null,null,null,null,null,null,0]
[null,null,null,null,null,null,null,null,null,null,null,null,null,null,null,null,null,0]
[null,null,null,null,null,null,null,null,null,null,null,null,null,null,null,null,null,0]
[null,null,null,null,null,null,null,null,null,null,null,null,null,null,null,null,null,0]
[null,null,null,null,null,null,null,null,null,null,null,null,null,null,null,null,null,0]
[null,null,null,null,null,null,null,null,null,null,null,null,null,null,null,null,null,0]
[null,null,null,null,null,null,null,null,null,null,null,null,null,null,null,null,null,0]
[null,null,null,null,null,null,null,null,null,null,null,null,null,null,null,null,null,0]
[null,null,null,null,null,null,null,null,null,null,null,null,null,null,null,null,null,0]
[null,null,null,null,null,null,null,null,null,null,null,null,null,null,null,null,null,0]
[null,null,null,"totale",{"$f":"SUM(E10:E41)","v":0},"totale",{"$f":"SUM(G10:G41)","v":0},"totale",{"$f":"SUM(I10:I41)","v":0},"totale",{"$f":"SUM(K10:K41)","v":0},"totale",{"$f":"SUM(M10:M41)","v":0},"totale",{"$f":"SUM(O10:O41)","v":0},"totale",{"$f":"SUM(Q10:Q41)","v":0},0]
[]
[]
[null,null,null,null,null,null,null,null,null,null,null,null,null,null,null,"Settembre"]
[]
[]
[null,null,"2. Spese fisse"]
[]
[null,null,null,null,null,null,null,"importo €",null,null,null,null,null,null,"importo €"]
[null,null,"abitare",null,"affitto",null,null,null,null,"risparmio",null,"mutuo risparmio, casa, azioni, obbligazioni"]
[null,null,null,null,"spese condominiali",null,null,null,null,null,null,"libretto di risparmio"]
[null,null,null,null,"spese di manutenzione",null,null,null,null,null,null,"altre forme di risparmio"]
[null,null,null,null,"corrente, canone TV",null,null,null,null,null,null,"totale parziale risparmio",null,null,{"$f":"SUM(O51:O53)","v":0}]
[null,null,null,null,"(tele)riscaldamento, gas, legna ecc."]
[null,null,null,null,"acqua, immondizia",null,null,null,null,"abbonamenti e \ntesseramenti",null,"abbonamento giornali"]
[null,null,null,null,"rata mutuo immobile",null,null,null,null,null,null,"tesseramenti"]
[null,null,null,null,"totale parziale abitare",null,null,{"$f":"SUM(H51:H57)","v":0},null,null,null,"abbonamento al teatro"]
[null,null,null,null,null,null,null,null,null,null,null,"carte stagionali (skipass)"]
[null,null,"mobilità",null,"autoveicolo - assicurazione",null,null,null,null,null,null,"altro"]
[null,null,null,null,"autoveicolo - bollo",null,null,null,null,null,null,"totale parziale abbonamenti",null,null,{"$f":"SUM(O56:O60)","v":0}]
[null,null,null,null,"moto - assicurazione"]
[null,null,null,null,"moto - bollo",null,null,null,null,"imposte, tributi, tasse",null,"imposta immobiliare"]
[null,null,null,null,"riparazione, revisione",null,null,null,null,null,null,"diversi tributi/tasse"]
[null,null,null,null,"rata leasing",null,null,null,null,null,null,"altro"]
[null,null,null,null,"contributo ACI",null,null,null,null,null,null,"totale parziale imposte",null,null,{"$f":"SUM(O63:O65)","v":0}]
[null,null,null,null,"totale parziale mobilità",null,null,{"$f":"SUM(H60:H66)","v":0}]
[null,null,null,null,null,null,null,null,null,"bambini",null,"alimenti"]
[null,null,"mezzi pubblici",null,"abbonamento annuale",null,null,null,null,null,null,"babysitter"]
[null,null,null,null,"totale parziale mezzi pubblici",null,null,{"$f":"H69","v":0},null,null,null,"asilo, scuola"]
[null,null,null,null,null,null,null,null,null,null,null,"tasse universitarie"]
[null,null,"comunicazione",null,"telefono fisso",null,null,null,null,null,null,"mensa scolastica"]
[null,null,null,null,"cellulare",null,null,null,null,null,null,"paghetta"]
[null,null,null,null,"internet",null,null,null,null,null,null,"scuola di musica, sport, ecc."]
[null,null,null,null,"Pay-TV, Sky…",null,null,null,null,null,null,"totale parziale bambini",null,null,{"$f":"SUM(O68:O74)","v":0}]
[null,null,null,null,"totale parziale comunicazione",null,null,{"$f":"SUM(H72:H75)","v":0}]
[null,null,null,null,null,null,null,null,null,"debiti",null,"rate prestito"]
[null,null,"assicurazione previdenza",null,"assicurazione abitazione",null,null,null,null,null,null,"altre rate, cambiali, revolving"]
[null,null,null,null,"assicurazione infortunio",null,null,null,null,null,null,"spese contocorrente"]
[null,null,null,null,"assicurazione malattia",null,null,null,null,null,null,"spese carta di credito"]
[null,null,null,null,"assicurazione respons. Civile",null,null,null,null,null,null,"altro"]
[null,null,null,null,"polizza vita",null,null,null,null,null,null,"totale parziale debiti",null,null,{"$f":"SUM(O77:O81)","v":0},null,null,"Spese fisse a settembre"]
[null,null,null,null,"previdenza pensionistica"]
[null,null,null,null,"altre assicurazioni/previdenza",null,null,null,null,"altro",null,"mantenimento ex coniuge"]
[null,null,null,null,"totale parziale assicurazione",null,null,{"$f":"SUM(H78:H84)","v":0},null,null,null,"altro",null,null,null,null,null,{"$f":"H58+H67+H70+H76+H85+O54+O61+O66+O75+O82+O86","v":0}]
[null,null,null,null,null,null,null,null,null,null,null,"totale parziale altro",null,null,{"$f":"SUM(O84:O85)","v":0}]
[]
[]
[null,null,null,null,null,null,null,null,null,null,null,null,null,null,null,"Settembre"]
[]
[]
[null,null,"3. Entrate mensili"]
[]
[null,null,null,null,null,null,"importo €"]
[null,null,"stipendio (netto)",null,null,null,null,null,null,null,null,"4. Bilancio mensile"]
[null,null,"stipendio coniuge (netto)"]
[null,null,"figli (contribuiscono)"]
[null,null,"pensione",null,null,null,null,null,null,null,null,null,null,null,null,"Betrag €"]
[null,null,"pensione coniuge",null,null,null,null,null,null,null,null,"entrate",null,null,null,{"$f":"G112","v":0}]
[null,null,"indennità di disoccupazione",null,null,null,null,null,null,null,null,"spese fisse",null,null,null,{"$f":"R85","v":0}]
[null,null,"inserimento al minimo vitale",null,null,null,null,null,null,null,null,"spese variabili",null,null,null,{"$f":"(R42)","v":0}]
[null,null,"contributo canone locazione",null,null,null,null,null,null,null,null,"bugdet a disposizione/mancante",null,null,null,{"$f":"P99-P100-P101","v":0}]
[null,null,"assegni famigliari provincia"]
[null,null,"assegni famigliari regione"]
[null,null,"assegni famigliari stato"]
[null,null,"alimenti/mantenimento"]
[null,null,"assegni di cura"]
[null,null,"borse di studio"]
[null,null,"aiuto da terzi"]
[null,null,"reddito per locazione immobili"]
[null,null,"altri redditi (p.e. interessi, prestazioni occasionali...)"]
[null,null,"totale mese",null,null,null,{"$f":"SUM(G95:G111)","v":0}]

{"sheet":"Ottobre","index":12,"n_rows":112,"n_cols":18,"rows_kept":112,"cut":false,"hidden":false,"merged":[[97,15,97,16],[98,15,98,16],[99,15,99,16],[100,15,100,16],[101,15,101,16],[2,15,3,17],[7,2,8,2],[7,3,7,4],[7,5,7,6],[7,7,7,8],[7,9,7,10],[7,11,7,12],[7,13,7,14],[7,15,7,16],[7,17,8,17],[44,15,45,17],[50,2,57,3],[50,4,50,6],[50,9,53,10],[50,11,50,13],[51,4,51,6],[51,11,51,13],[52,4,52,6],[52,11,52,13],[53,4,53,6],[54,4,54,6],[55,4,55,6],[55,9,60,10],[55,11,55,13],[56,4,56,6],[56,11,56,13],[57,4,57,6],[57,11,57,13],[58,11,58,13],[64,11,64,13],[65,4,65,6],[65,11,65,13],[67,9,74,10],[67,11,67,13],[68,2,69,3],[68,4,68,6],[68,11,68,13],[69,11,69,13],[70,11,70,13],[59,2,66,3],[59,11,59,13],[60,4,60,6],[60,11,60,13],[62,4,62,6],[62,9,65,10],[62,11,62,13],[63,4,63,6],[63,11,63,13],[64,4,64,6],[77,2,84,3],[77,4,77,6],[77,11,77,13],[78,4,78,6],[78,11,78,13],[79,4,79,6],[79,11,79,13],[80,4,80,6],[71,2,75,3],[71,4,71,6],[71,11,71,13],[72,4,72,6],[72,11,72,13],[73,4,73,6],[73,11,73,13],[74,4,74,6],[74,11,74,13],[75,4,75,6],[85,11,85,13],[88,15,89,17],[93,6,93,7],[94,6,94,7],[94,11,95,14],[95,6,95,7],[80,11,80,13],[81,4,81,6],[81,11,81,13],[81,17,83,18],[82,4,82,6],[83,4,83,6],[83,9,85,10],[83,11,83,13],[84,4,84,6],[84,11,84,13],[76,9,81,10],[76,11,76,13],[100,6,100,7],[100,11,100,14],[101,6,101,7],[101,11,101,14],[102,6,102,7],[103,6,103,7],[96,6,96,7],[97,6,97,7],[98,6,98,7],[98,11,98,14],[99,6,99,7],[99,11,99,14],[110,6,110,7],[111,2,111,5],[111,6,111,7],[104,6,104,7],[105,6,105,7],[106,6,106,7],[107,6,107,7],[108,6,108,7],[109,6,109,7]]}
[]
[]
[null,null,null,null,null,null,null,null,null,null,null,null,null,null,null,"Ottobre"]
[]
[]
[null,null,"1. Spese variabili"]
[]
[null,null,"data","spese di \nmantenimento",null,"abbigliamento",null,"salute",null,"sociale e cultura",null,"mobilità",null,"spese personali",null,"abitare",null,"totale"]
[null,null,null,"spese per","€","spese per"," €","spese per"," €","spese per","€","spese per"," €","spese per"," €","spese per"," €"]
[null,null,null,null,null,null,null,null,null,null,null,null,null,null,null,null,null,{"$f":"E10+G10+I10+K10+M10+O10+Q10","v":0}]
[null,null,null,null,null,null,null,null,null,null,null,null,null,null,null,null,null,{"$f":"E11+G11+I11+K11+M11+O11+Q11","v":0}]
[null,null,null,null,null,null,null,null,null,null,null,null,null,null,null,null,null,0]
[null,null,null,null,null,null,null,null,null,null,null,null,null,null,null,null,null,0]
[null,null,null,null,null,null,null,null,null,null,null,null,null,null,null,null,null,0]
[null,null,null,null,null,null,null,null,null,null,null,null,null,null,null,null,null,0]
[null,null,null,null,null,null,null,null,null,null,null,null,null,null,null,null,null,0]
[null,null,null,null,null,null,null,null,null,null,null,null,null,null,null,null,null,0]
[null,null,null,null,null,null,null,null,null,null,null,null,null,null,null,null,null,0]
[null,null,null,null,null,null,null,null,null,null,null,null,null,null,null,null,null,0]
[null,null,null,null,null,null,null,null,null,null,null,null,null,null,null,null,null,0]
[null,null,null,null,null,null,null,null,null,null,null,null,null,null,null,null,null,0]
[null,null,null,null,null,null,null,null,null,null,null,null,null,null,null,null,null,0]
[null,null,null,null,null,null,null,null,null,null,null,null,null,null,null,null,null,0]
[null,null,null,null,null,null,null,null,null,null,null,null,null,null,null,null,null,0]
[null,null,null,null,null,null,null,null,null,null,null,null,null,null,null,null,null,0]
[null,null,null,null,null,null,null,null,null,null,null,null,null,null,null,null,null,0]
[null,null,null,null,null,null,null,null,null,null,null,null,null,null,null,null,null,0]
[null,null,null,null,null,null,null,null,null,null,null,null,null,null,null,null,null,0]
[null,null,null,null,null,null,null,null,null,null,null,null,null,null,null,null,null,0]
[null,null,null,null,null,null,null,null,null,null,null,null,null,null,null,null,null,0]
[null,null,null,null,null,null,null,null,null,null,null,null,null,null,null,null,null,0]
[null,null,null,null,null,null,null,null,null,null,null,null,null,null,null,null,null,0]
[null,null,null,null,null,null,null,null,null,null,null,null,null,null,null,null,null,0]
[null,null,null,null,null,null,null,null,null,null,null,null,null,null,null,null,null,0]
[null,null,null,null,null,null,null,null,null,null,null,null,null,null,null,null,null,0]
[null,null,null,null,null,null,null,null,null,null,null,null,null,null,null,null,null,0]
[null,null,null,null,null,null,null,null,null,null,null,null,null,null,null,null,null,0]
[null,null,null,null,null,null,null,null,null,null,null,null,null,null,null,null,null,0]
[null,null,null,null,null,null,null,null,null,null,null,null,null,null,null,null,null,0]
[null,null,null,null,null,null,null,null,null,null,null,null,null,null,null,null,null,0]
[null,null,null,null,null,null,null,null,null,null,null,null,null,null,null,null,null,0]
[null,null,null,"totale",{"$f":"SUM(E10:E41)","v":0},"totale",{"$f":"SUM(G10:G41)","v":0},"totale",{"$f":"SUM(I10:I41)","v":0},"totale",{"$f":"SUM(K10:K41)","v":0},"totale",{"$f":"SUM(M10:M41)","v":0},"totale",{"$f":"SUM(O10:O41)","v":0},"totale",{"$f":"SUM(Q10:Q41)","v":0},0]
[]
[]
[null,null,null,null,null,null,null,null,null,null,null,null,null,null,null,"Ottobre"]
[]
[]
[null,null,"2. Spese fisse"]
[]
[null,null,null,null,null,null,null,"importo €",null,null,null,null,null,null,"importo €"]
[null,null,"abitare",null,"affitto",null,null,null,null,"risparmio",null,"mutuo risparmio, casa, azioni, obbligazioni"]
[null,null,null,null,"spese condominiali",null,null,null,null,null,null,"libretto di risparmio"]
[null,null,null,null,"spese di manutenzione",null,null,null,null,null,null,"altre forme di risparmio"]
[null,null,null,null,"corrente, canone TV",null,null,null,null,null,null,"totale parziale risparmio",null,null,{"$f":"SUM(O51:O53)","v":0}]
[null,null,null,null,"(tele)riscaldamento, gas, legna ecc."]
[null,null,null,null,"acqua, immondizia",null,null,null,null,"abbonamenti e \ntesseramenti",null,"abbonamento giornali"]
[null,null,null,null,"rata mutuo immobile",null,null,null,null,null,null,"tesseramenti"]
[null,null,null,null,"totale parziale abitare",null,null,{"$f":"SUM(H51:H57)","v":0},null,null,null,"abbonamento al teatro"]
[null,null,null,null,null,null,null,null,null,null,null,"carte stagionali (skipass)"]
[null,null,"mobilità",null,"autoveicolo - assicurazione",null,null,null,null,null,null,"altro"]
[null,null,null,null,"autoveicolo - bollo",null,null,null,null,null,null,"totale parziale abbonamenti",null,null,{"$f":"SUM(O56:O60)","v":0}]
[null,null,null,null,"moto - assicurazione"]
[null,null,null,null,"moto - bollo",null,null,null,null,"imposte, tributi, tasse",null,"imposta immobiliare"]
[null,null,null,null,"riparazione, revisione",null,null,null,null,null,null,"diversi tributi/tasse"]
[null,null,null,null,"rata leasing",null,null,null,null,null,null,"altro"]
[null,null,null,null,"contributo ACI",null,null,null,null,null,null,"totale parziale imposte",null,null,{"$f":"SUM(O63:O65)","v":0}]
[null,null,null,null,"totale parziale mobilità",null,null,{"$f":"SUM(H60:H66)","v":0}]
[null,null,null,null,null,null,null,null,null,"bambini",null,"alimenti"]
[null,null,"mezzi pubblici",null,"abbonamento annuale",null,null,null,null,null,null,"babysitter"]
[null,null,null,null,"totale parziale mezzi pubblici",null,null,{"$f":"H69","v":0},null,null,null,"asilo, scuola"]
[null,null,null,null,null,null,null,null,null,null,null,"tasse universitarie"]
[null,null,"comunicazione",null,"telefono fisso",null,null,null,null,null,null,"mensa scolastica"]
[null,null,null,null,"cellulare",null,null,null,null,null,null,"paghetta"]
[null,null,null,null,"internet",null,null,null,null,null,null,"scuola di musica, sport, ecc."]
[null,null,null,null,"Pay-TV, Sky…",null,null,null,null,null,null,"totale parziale bambini",null,null,{"$f":"SUM(O68:O74)","v":0}]
[null,null,null,null,"totale parziale comunicazione",null,null,{"$f":"SUM(H72:H75)","v":0}]
[null,null,null,null,null,null,null,null,null,"debiti",null,"rate prestito"]
[null,null,"assicurazione previdenza",null,"assicurazione abitazione",null,null,null,null,null,null,"altre rate, cambiali, revolving"]
[null,null,null,null,"assicurazione infortunio",null,null,null,null,null,null,"spese contocorrente"]
[null,null,null,null,"assicurazione malattia",null,null,null,null,null,null,"spese carta di credito"]
[null,null,null,null,"assicurazione respons. Civile",null,null,null,null,null,null,"altro"]
[null,null,null,null,"polizza vita",null,null,null,null,null,null,"totale parziale debiti",null,null,{"$f":"SUM(O77:O81)","v":0},null,null,"Spese fisse in ottobre"]
[null,null,null,null,"previdenza pensionistica"]
[null,null,null,null,"altre assicurazioni/previdenza",null,null,null,null,"altro",null,"mantenimento ex coniuge"]
[null,null,null,null,"totale parziale assicurazione",null,null,{"$f":"SUM(H78:H84)","v":0},null,null,null,"altro",null,null,null,null,null,{"$f":"H58+H67+H70+H76+H85+O54+O61+O66+O75+O82+O86","v":0}]
[null,null,null,null,null,null,null,null,null,null,null,"totale parziale altro",null,null,{"$f":"SUM(O84:O85)","v":0}]
[]
[]
[null,null,null,null,null,null,null,null,null,null,null,null,null,null,null,"Ottobre"]
[]
[]
[null,null,"3. Entrate mensili"]
[]
[null,null,null,null,null,null,"importo €"]
[null,null,"stipendio (netto)",null,null,null,null,null,null,null,null,"4. Bilancio mensile"]
[null,null,"stipendio coniuge (netto)"]
[null,null,"figli (contribuiscono)"]
[null,null,"pensione",null,null,null,null,null,null,null,null,null,null,null,null,"Betrag €"]
[null,null,"pensione coniuge",null,null,null,null,null,null,null,null,"entrate",null,null,null,{"$f":"G112","v":0}]
[null,null,"indennità di disoccupazione",null,null,null,null,null,null,null,null,"spese fisse",null,null,null,{"$f":"R85","v":0}]
[null,null,"inserimento al minimo vitale",null,null,null,null,null,null,null,null,"spese variabili",null,null,null,{"$f":"(R42)","v":0}]
[null,null,"contributo canone locazione",null,null,null,null,null,null,null,null,"bugdet a disposizione/mancante",null,null,null,{"$f":"P99-P100-P101","v":0}]
[null,null,"assegni famigliari provincia"]
[null,null,"assegni famigliari regione"]
[null,null,"assegni famigliari stato"]
[null,null,"alimenti/mantenimento"]
[null,null,"assegni di cura"]
[null,null,"borse di studio"]
[null,null,"aiuto da terzi"]
[null,null,"reddito per locazione immobili"]
[null,null,"altri redditi (p.e. interessi, prestazioni occasionali...)"]
[null,null,"totale mese",null,null,null,{"$f":"SUM(G95:G111)","v":0}]

{"sheet":"Novembre","index":13,"n_rows":112,"n_cols":18,"rows_kept":112,"cut":false,"hidden":false,"merged":[[97,15,97,16],[98,15,98,16],[99,15,99,16],[100,15,100,16],[101,15,101,16],[2,15,3,17],[7,2,8,2],[7,3,7,4],[7,5,7,6],[7,7,7,8],[7,9,7,10],[7,11,7,12],[7,13,7,14],[7,15,7,16],[7,17,8,17],[44,15,45,17],[50,2,57,3],[50,4,50,6],[50,9,53,10],[50,11,50,13],[51,4,51,6],[51,11,51,13],[52,4,52,6],[52,11,52,13],[53,4,53,6],[54,4,54,6],[55,4,55,6],[55,9,60,10],[55,11,55,13],[56,4,56,6],[56,11,56,13],[57,4,57,6],[57,11,57,13],[58,11,58,13],[64,11,64,13],[65,4,65,6],[65,11,65,13],[67,9,74,10],[67,11,67,13],[68,2,69,3],[68,4,68,6],[68,11,68,13],[69,11,69,13],[70,11,70,13],[59,2,66,3],[59,11,59,13],[60,4,60,6],[60,11,60,13],[62,4,62,6],[62,9,65,10],[62,11,62,13],[63,4,63,6],[63,11,63,13],[64,4,64,6],[77,2,84,3],[77,4,77,6],[77,11,77,13],[78,4,78,6],[78,11,78,13],[79,4,79,6],[79,11,79,13],[80,4,80,6],[71,2,75,3],[71,4,71,6],[71,11,71,13],[72,4,72,6],[72,11,72,13],[73,4,73,6],[73,11,73,13],[74,4,74,6],[74,11,74,13],[75,4,75,6],[85,11,85,13],[88,15,89,17],[93,6,93,7],[94,6,94,7],[94,11,95,14],[95,6,95,7],[80,11,80,13],[81,4,81,6],[81,11,81,13],[81,17,83,18],[82,4,82,6],[83,4,83,6],[83,9,85,10],[83,11,83,13],[84,4,84,6],[84,11,84,13],[76,9,81,10],[76,11,76,13],[100,6,100,7],[100,11,100,14],[101,6,101,7],[101,11,101,14],[102,6,102,7],[103,6,103,7],[96,6,96,7],[97,6,97,7],[98,6,98,7],[98,11,98,14],[99,6,99,7],[99,11,99,14],[110,6,110,7],[111,2,111,5],[111,6,111,7],[104,6,104,7],[105,6,105,7],[106,6,106,7],[107,6,107,7],[108,6,108,7],[109,6,109,7]]}
[]
[]
[null,null,null,null,null,null,null,null,null,null,null,null,null,null,null,"Novembre"]
[]
[]
[null,null,"1. Spese variabili"]
[]
[null,null,"data","spese di \nmantenimento",null,"abbigliamento",null,"salute",null,"sociale e cultura",null,"mobilità",null,"spese personali",null,"abitare",null,"totale"]
[null,null,null,"spese per","€","spese per"," €","spese per"," €","spese per","€","spese per"," €","spese per"," €","spese per"," €"]
[null,null,null,null,null,null,null,null,null,null,null,null,null,null,null,null,null,{"$f":"E10+G10+I10+K10+M10+O10+Q10","v":0}]
[null,null,null,null,null,null,null,null,null,null,null,null,null,null,null,null,null,{"$f":"E11+G11+I11+K11+M11+O11+Q11","v":0}]
[null,null,null,null,null,null,null,null,null,null,null,null,null,null,null,null,null,0]
[null,null,null,null,null,null,null,null,null,null,null,null,null,null,null,null,null,0]
[null,null,null,null,null,null,null,null,null,null,null,null,null,null,null,null,null,0]
[null,null,null,null,null,null,null,null,null,null,null,null,null,null,null,null,null,0]
[null,null,null,null,null,null,null,null,null,null,null,null,null,null,null,null,null,0]
[null,null,null,null,null,null,null,null,null,null,null,null,null,null,null,null,null,0]
[null,null,null,null,null,null,null,null,null,null,null,null,null,null,null,null,null,0]
[null,null,null,null,null,null,null,null,null,null,null,null,null,null,null,null,null,0]
[null,null,null,null,null,null,null,null,null,null,null,null,null,null,null,null,null,0]
[null,null,null,null,null,null,null,null,null,null,null,null,null,null,null,null,null,0]
[null,null,null,null,null,null,null,null,null,null,null,null,null,null,null,null,null,0]
[null,null,null,null,null,null,null,null,null,null,null,null,null,null,null,null,null,0]
[null,null,null,null,null,null,null,null,null,null,null,null,null,null,null,null,null,0]
[null,null,null,null,null,null,null,null,null,null,null,null,null,null,null,null,null,0]
[null,null,null,null,null,null,null,null,null,null,null,null,null,null,null,null,null,0]
[null,null,null,null,null,null,null,null,null,null,null,null,null,null,null,null,null,0]
[null,null,null,null,null,null,null,null,null,null,null,null,null,null,null,null,null,0]
[null,null,null,null,null,null,null,null,null,null,null,null,null,null,null,null,null,0]
[null,null,null,null,null,null,null,null,null,null,null,null,null,null,null,null,null,0]
[null,null,null,null,null,null,null,null,null,null,null,null,null,null,null,null,null,0]
[null,null,null,null,null,null,null,null,null,null,null,null,null,null,null,null,null,0]
[null,null,null,null,null,null,null,null,null,null,null,null,null,null,null,null,null,0]
[null,null,null,null,null,null,null,null,null,null,null,null,null,null,null,null,null,0]
[null,null,null,null,null,null,null,null,null,null,null,null,null,null,null,null,null,0]
[null,null,null,null,null,null,null,null,null,null,null,null,null,null,null,null,null,0]
[null,null,null,null,null,null,null,null,null,null,null,null,null,null,null,null,null,0]
[null,null,null,null,null,null,null,null,null,null,null,null,null,null,null,null,null,0]
[null,null,null,null,null,null,null,null,null,null,null,null,null,null,null,null,null,0]
[null,null,null,null,null,null,null,null,null,null,null,null,null,null,null,null,null,0]
[null,null,null,null,null,null,null,null,null,null,null,null,null,null,null,null,null,0]
[null,null,null,"totale",{"$f":"SUM(E10:E41)","v":0},"totale",{"$f":"SUM(G10:G41)","v":0},"totale",{"$f":"SUM(I10:I41)","v":0},"totale",{"$f":"SUM(K10:K41)","v":0},"totale",{"$f":"SUM(M10:M41)","v":0},"totale",{"$f":"SUM(O10:O41)","v":0},"totale",{"$f":"SUM(Q10:Q41)","v":0},0]
[]
[]
[null,null,null,null,null,null,null,null,null,null,null,null,null,null,null,"Novembre"]
[]
[]
[null,null,"2. Spese fisse"]
[]
[null,null,null,null,null,null,null,"importo €",null,null,null,null,null,null,"importo €"]
[null,null,"abitare",null,"affitto",null,null,null,null,"risparmio",null,"mutuo risparmio, casa, azioni, obbligazioni"]
[null,null,null,null,"spese condominiali",null,null,null,null,null,null,"libretto di risparmio"]
[null,null,null,null,"spese di manutenzione",null,null,null,null,null,null,"altre forme di risparmio"]
[null,null,null,null,"corrente, canone TV",null,null,null,null,null,null,"totale parziale risparmio",null,null,{"$f":"SUM(O51:O53)","v":0}]
[null,null,null,null,"(tele)riscaldamento, gas, legna ecc."]
[null,null,null,null,"acqua, immondizia",null,null,null,null,"abbonamenti e \ntesseramenti",null,"abbonamento giornali"]
[null,null,null,null,"rata mutuo immobile",null,null,null,null,null,null,"tesseramenti"]
[null,null,null,null,"totale parziale abitare",null,null,{"$f":"SUM(H51:H57)","v":0},null,null,null,"abbonamento al teatro"]
[null,null,null,null,null,null,null,null,null,null,null,"carte stagionali (skipass)"]
[null,null,"mobilità",null,"autoveicolo - assicurazione",null,null,null,null,null,null,"altro"]
[null,null,null,null,"autoveicolo - bollo",null,null,null,null,null,null,"totale parziale abbonamenti",null,null,{"$f":"SUM(O56:O60)","v":0}]
[null,null,null,null,"moto - assicurazione"]
[null,null,null,null,"moto - bollo",null,null,null,null,"imposte, tributi, tasse",null,"imposta immobiliare"]
[null,null,null,null,"riparazione, revisione",null,null,null,null,null,null,"diversi tributi/tasse"]
[null,null,null,null,"rata leasing",null,null,null,null,null,null,"altro"]
[null,null,null,null,"contributo ACI",null,null,null,null,null,null,"totale parziale imposte",null,null,{"$f":"SUM(O63:O65)","v":0}]
[null,null,null,null,"totale parziale mobilità",null,null,{"$f":"SUM(H60:H66)","v":0}]
[null,null,null,null,null,null,null,null,null,"bambini",null,"alimenti"]
[null,null,"mezzi pubblici",null,"abbonamento annuale",null,null,null,null,null,null,"babysitter"]
[null,null,null,null,"totale parziale mezzi pubblici",null,null,{"$f":"H69","v":0},null,null,null,"asilo, scuola"]
[null,null,null,null,null,null,null,null,null,null,null,"tasse universitarie"]
[null,null,"comunicazione",null,"telefono fisso",null,null,null,null,null,null,"mensa scolastica"]
[null,null,null,null,"cellulare",null,null,null,null,null,null,"paghetta"]
[null,null,null,null,"internet",null,null,null,null,null,null,"scuola di musica, sport, ecc."]
[null,null,null,null,"Pay-TV, Sky…",null,null,null,null,null,null,"totale parziale bambini",null,null,{"$f":"SUM(O68:O74)","v":0}]
[null,null,null,null,"totale parziale comunicazione",null,null,{"$f":"SUM(H72:H75)","v":0}]
[null,null,null,null,null,null,null,null,null,"debiti",null,"rate prestito"]
[null,null,"assicurazione previdenza",null,"assicurazione abitazione",null,null,null,null,null,null,"altre rate, cambiali, revolving"]
[null,null,null,null,"assicurazione infortunio",null,null,null,null,null,null,"spese contocorrente"]
[null,null,null,null,"assicurazione malattia",null,null,null,null,null,null,"spese carta di credito"]
[null,null,null,null,"assicurazione respons. Civile",null,null,null,null,null,null,"altro"]
[null,null,null,null,"polizza vita",null,null,null,null,null,null,"totale parziale debiti",null,null,{"$f":"SUM(O77:O81)","v":0},null,null,"Spese fissea novembre"]
[null,null,null,null,"previdenza pensionistica"]
[null,null,null,null,"altre assicurazioni/previdenza",null,null,null,null,"altro",null,"mantenimento ex coniuge"]
[null,null,null,null,"totale parziale assicurazione",null,null,{"$f":"SUM(H78:H84)","v":0},null,null,null,"altro",null,null,null,null,null,{"$f":"H58+H67+H70+H76+H85+O54+O61+O66+O75+O82+O86","v":0}]
[null,null,null,null,null,null,null,null,null,null,null,"totale parziale altro",null,null,{"$f":"SUM(O84:O85)","v":0}]
[]
[]
[null,null,null,null,null,null,null,null,null,null,null,null,null,null,null,"Novembre"]
[]
[]
[null,null,"3. Entrate mensili"]
[]
[null,null,null,null,null,null,"importo €"]
[null,null,"stipendio (netto)",null,null,null,null,null,null,null,null,"4. Bilancio mensile"]
[null,null,"stipendio coniuge (netto)"]
[null,null,"figli (contribuiscono)"]
[null,null,"pensione",null,null,null,null,null,null,null,null,null,null,null,null,"Betrag €"]
[null,null,"pensione coniuge",null,null,null,null,null,null,null,null,"entrate",null,null,null,{"$f":"G112","v":0}]
[null,null,"indennità di disoccupazione",null,null,null,null,null,null,null,null,"spese fisse",null,null,null,{"$f":"R85","v":0}]
[null,null,"inserimento al minimo vitale",null,null,null,null,null,null,null,null,"spese variabili",null,null,null,{"$f":"(R42)","v":0}]
[null,null,"contributo canone locazione",null,null,null,null,null,null,null,null,"bugdet a disposizione/mancante",null,null,null,{"$f":"P99-P100-P101","v":0}]
[null,null,"assegni famigliari provincia"]
[null,null,"assegni famigliari regione"]
[null,null,"assegni famigliari stato"]
[null,null,"alimenti/mantenimento"]
[null,null,"assegni di cura"]
[null,null,"borse di studio"]
[null,null,"aiuto da terzi"]
[null,null,"reddito per locazione immobili"]
[null,null,"altri redditi (p.e. interessi, prestazioni occasionali...)"]
[null,null,"totale mese",null,null,null,{"$f":"SUM(G95:G111)","v":0}]

{"sheet":"Dicembre","index":14,"n_rows":112,"n_cols":18,"rows_kept":112,"cut":false,"hidden":false,"merged":[[97,15,97,16],[98,15,98,16],[99,15,99,16],[100,15,100,16],[101,15,101,16],[2,15,3,17],[7,2,8,2],[7,3,7,4],[7,5,7,6],[7,7,7,8],[7,9,7,10],[7,11,7,12],[7,13,7,14],[7,15,7,16],[7,17,8,17],[44,15,45,17],[50,2,57,3],[50,4,50,6],[50,9,53,10],[50,11,50,13],[51,4,51,6],[51,11,51,13],[52,4,52,6],[52,11,52,13],[53,4,53,6],[54,4,54,6],[55,4,55,6],[55,9,60,10],[55,11,55,13],[56,4,56,6],[56,11,56,13],[57,4,57,6],[57,11,57,13],[58,11,58,13],[64,11,64,13],[65,4,65,6],[65,11,65,13],[67,9,74,10],[67,11,67,13],[68,2,69,3],[68,4,68,6],[68,11,68,13],[69,11,69,13],[70,11,70,13],[59,2,66,3],[59,11,59,13],[60,4,60,6],[60,11,60,13],[62,4,62,6],[62,9,65,10],[62,11,62,13],[63,4,63,6],[63,11,63,13],[64,4,64,6],[77,2,84,3],[77,4,77,6],[77,11,77,13],[78,4,78,6],[78,11,78,13],[79,4,79,6],[79,11,79,13],[80,4,80,6],[71,2,75,3],[71,4,71,6],[71,11,71,13],[72,4,72,6],[72,11,72,13],[73,4,73,6],[73,11,73,13],[74,4,74,6],[74,11,74,13],[75,4,75,6],[85,11,85,13],[88,15,89,17],[93,6,93,7],[94,6,94,7],[94,11,95,14],[95,6,95,7],[80,11,80,13],[81,4,81,6],[81,11,81,13],[81,17,83,18],[82,4,82,6],[83,4,83,6],[83,9,85,10],[83,11,83,13],[84,4,84,6],[84,11,84,13],[76,9,81,10],[76,11,76,13],[100,6,100,7],[100,11,100,14],[101,6,101,7],[101,11,101,14],[102,6,102,7],[103,6,103,7],[96,6,96,7],[97,6,97,7],[98,6,98,7],[98,11,98,14],[99,6,99,7],[99,11,99,14],[110,6,110,7],[111,2,111,5],[111,6,111,7],[104,6,104,7],[105,6,105,7],[106,6,106,7],[107,6,107,7],[108,6,108,7],[109,6,109,7]]}
[]
[]
[null,null,null,null,null,null,null,null,null,null,null,null,null,null,null,"Dicembre"]
[]
[]
[null,null,"1. Spese variabili"]
[]
[null,null,"data","spese di \nmantenimento",null,"abbigliamento",null,"salute",null,"sociale e cultura",null,"mobilità",null,"spese personali",null,"abitare",null,"totale"]
[null,null,null,"spese per","€","spese per"," €","spese per"," €","spese per","€","spese per"," €","spese per"," €","spese per"," €"]
[null,null,null,null,null,null,null,null,null,null,null,null,null,null,null,null,null,{"$f":"E10+G10+I10+K10+M10+O10+Q10","v":0}]
[null,null,null,null,null,null,null,null,null,null,null,null,null,null,null,null,null,{"$f":"E11+G11+I11+K11+M11+O11+Q11","v":0}]
[null,null,null,null,null,null,null,null,null,null,null,null,null,null,null,null,null,0]
[null,null,null,null,null,null,null,null,null,null,null,null,null,null,null,null,null,0]
[null,null,null,null,null,null,null,null,null,null,null,null,null,null,null,null,null,0]
[null,null,null,null,null,null,null,null,null,null,null,null,null,null,null,null,null,0]
[null,null,null,null,null,null,null,null,null,null,null,null,null,null,null,null,null,0]
[null,null,null,null,null,null,null,null,null,null,null,null,null,null,null,null,null,0]
[null,null,null,null,null,null,null,null,null,null,null,null,null,null,null,null,null,0]
[null,null,null,null,null,null,null,null,null,null,null,null,null,null,null,null,null,0]
[null,null,null,null,null,null,null,null,null,null,null,null,null,null,null,null,null,0]
[null,null,null,null,null,null,null,null,null,null,null,null,null,null,null,null,null,0]
[null,null,null,null,null,null,null,null,null,null,null,null,null,null,null,null,null,0]
[null,null,null,null,null,null,null,null,null,null,null,null,null,null,null,null,null,0]
[null,null,null,null,null,null,null,null,null,null,null,null,null,null,null,null,null,0]
[null,null,null,null,null,null,null,null,null,null,null,null,null,null,null,null,null,0]
[null,null,null,null,null,null,null,null,null,null,null,null,null,null,null,null,null,0]
[null,null,null,null,null,null,null,null,null,null,null,null,null,null,null,null,null,0]
[null,null,null,null,null,null,null,null,null,null,null,null,null,null,null,null,null,0]
[null,null,null,null,null,null,null,null,null,null,null,null,null,null,null,null,null,0]
[null,null,null,null,null,null,null,null,null,null,null,null,null,null,null,null,null,0]
[null,null,null,null,null,null,null,null,null,null,null,null,null,null,null,null,null,0]
[null,null,null,null,null,null,null,null,null,null,null,null,null,null,null,null,null,0]
[null,null,null,null,null,null,null,null,null,null,null,null,null,null,null,null,null,0]
[null,null,null,null,null,null,null,null,null,null,null,null,null,null,null,null,null,0]
[null,null,null,null,null,null,null,null,null,null,null,null,null,null,null,null,null,0]
[null,null,null,null,null,null,null,null,null,null,null,null,null,null,null,null,null,0]
[null,null,null,null,null,null,null,null,null,null,null,null,null,null,null,null,null,0]
[null,null,null,null,null,null,null,null,null,null,null,null,null,null,null,null,null,0]
[null,null,null,null,null,null,null,null,null,null,null,null,null,null,null,null,null,0]
[null,null,null,null,null,null,null,null,null,null,null,null,null,null,null,null,null,0]
[null,null,null,null,null,null,null,null,null,null,null,null,null,null,null,null,null,0]
[null,null,null,"totale",{"$f":"SUM(E10:E41)","v":0},"totale",{"$f":"SUM(G10:G41)","v":0},"totale",{"$f":"SUM(I10:I41)","v":0},"totale",{"$f":"SUM(K10:K41)","v":0},"totale",{"$f":"SUM(M10:M41)","v":0},"totale",{"$f":"SUM(O10:O41)","v":0},"totale",{"$f":"SUM(Q10:Q41)","v":0},0]
[]
[]
[null,null,null,null,null,null,null,null,null,null,null,null,null,null,null,"Dicembre"]
[]
[]
[null,null,"2. Spese fisse"]
[]
[null,null,null,null,null,null,null,"importo €",null,null,null,null,null,null,"importo €"]
[null,null,"abitare",null,"affitto",null,null,null,null,"risparmio",null,"mutuo risparmio, casa, azioni, obbligazioni"]
[null,null,null,null,"spese condominiali",null,null,null,null,null,null,"libretto di risparmio"]
[null,null,null,null,"spese di manutenzione",null,null,null,null,null,null,"altre forme di risparmio"]
[null,null,null,null,"corrente, canone TV",null,null,null,null,null,null,"totale parziale risparmio",null,null,{"$f":"SUM(O51:O53)","v":0}]
[null,null,null,null,"(tele)riscaldamento, gas, legna ecc."]
[null,null,null,null,"acqua, immondizia",null,null,null,null,"abbonamenti e \ntesseramenti",null,"abbonamento giornali"]
[null,null,null,null,"rata mutuo immobile",null,null,null,null,null,null,"tesseramenti"]
[null,null,null,null,"totale parziale abitare",null,null,{"$f":"SUM(H51:H57)","v":0},null,null,null,"abbonamento al teatro"]
[null,null,null,null,null,null,null,null,null,null,null,"carte stagionali (skipass)"]
[null,null,"mobilità",null,"autoveicolo - assicurazione",null,null,null,null,null,null,"altro"]
[null,null,null,null,"autoveicolo - bollo",null,null,null,null,null,null,"totale parziale abbonamenti",null,null,{"$f":"SUM(O56:O60)","v":0}]
[null,null,null,null,"moto - assicurazione"]
[null,null,null,null,"moto - bollo",null,null,null,null,"imposte, tributi, tasse",null,"imposta immobiliare"]
[null,null,null,null,"riparazione, revisione",null,null,null,null,null,null,"diversi tributi/tasse"]
[null,null,null,null,"rata leasing",null,null,null,null,null,null,"altro"]
[null,null,null,null,"contributo ACI",null,null,null,null,null,null,"totale parziale imposte",null,null,{"$f":"SUM(O63:O65)","v":0}]
[null,null,null,null,"totale parziale mobilità",null,null,{"$f":"SUM(H60:H66)","v":0}]
[null,null,null,null,null,null,null,null,null,"bambini",null,"alimenti"]
[null,null,"mezzi pubblici",null,"abbonamento annuale",null,null,null,null,null,null,"babysitter"]
[null,null,null,null,"totale parziale mezzi pubblici",null,null,{"$f":"H69","v":0},null,null,null,"asilo, scuola"]
[null,null,null,null,null,null,null,null,null,null,null,"tasse universitarie"]
[null,null,"comunicazione",null,"telefono fisso",null,null,null,null,null,null,"mensa scolastica"]
[null,null,null,null,"cellulare",null,null,null,null,null,null,"paghetta"]
[null,null,null,null,"internet",null,null,null,null,null,null,"scuola di musica, sport, ecc."]
[null,null,null,null,"Pay-TV, Sky…",null,null,null,null,null,null,"totale parziale bambini",null,null,{"$f":"SUM(O68:O74)","v":0}]
[null,null,null,null,"totale parziale comunicazione",null,null,{"$f":"SUM(H72:H75)","v":0}]
[null,null,null,null,null,null,null,null,null,"debiti",null,"rate prestito"]
[null,null,"assicurazione previdenza",null,"assicurazione abitazione",null,null,null,null,null,null,"altre rate, cambiali, revolving"]
[null,null,null,null,"assicurazione infortunio",null,null,null,null,null,null,"spese contocorrente"]
[null,null,null,null,"assicurazione malattia",null,null,null,null,null,null,"spese carta di credito"]
[null,null,null,null,"assicurazione respons. Civile",null,null,null,null,null,null,"altro"]
[null,null,null,null,"polizza vita",null,null,null,null,null,null,"totale parziale debiti",null,null,{"$f":"SUM(O77:O81)","v":0},null,null,"Spese fisse a dicembre"]
[null,null,null,null,"previdenza pensionistica"]
[null,null,null,null,"altre assicurazioni/previdenza",null,null,null,null,"altro",null,"mantenimento ex coniuge"]
[null,null,null,null,"totale parziale assicurazione",null,null,{"$f":"SUM(H78:H84)","v":0},null,null,null,"altro",null,null,null,null,null,{"$f":"H58+H67+H70+H76+H85+O54+O61+O66+O75+O82+O86","v":0}]
[null,null,null,null,null,null,null,null,null,null,null,"totale parziale altro",null,null,{"$f":"SUM(O84:O85)","v":0}]
[]
[]
[null,null,null,null,null,null,null,null,null,null,null,null,null,null,null,"Dicembre"]
[]
[]
[null,null,"3. Entrate mensili"]
[]
[null,null,null,null,null,null,"importo €"]
[null,null,"stipendio (netto)",null,null,null,null,null,null,null,null,"4. Bilancio mensile"]
[null,null,"stipendio coniuge (netto)"]
[null,null,"figli (contribuiscono)"]
[null,null,"pensione",null,null,null,null,null,null,null,null,null,null,null,null,"Betrag €"]
[null,null,"pensione coniuge",null,null,null,null,null,null,null,null,"entrate",null,null,null,{"$f":"G112","v":0}]
[null,null,"indennità di disoccupazione",null,null,null,null,null,null,null,null,"spese fisse",null,null,null,{"$f":"R85","v":0}]
[null,null,"inserimento al minimo vitale",null,null,null,null,null,null,null,null,"spese variabili",null,null,null,{"$f":"(R42)","v":0}]
[null,null,"contributo canone locazione",null,null,null,null,null,null,null,null,"bugdet a disposizione/mancante",null,null,null,{"$f":"P99-P100-P101","v":0}]
[null,null,"assegni famigliari provincia"]
[null,null,"assegni famigliari regione"]
[null,null,"assegni famigliari stato"]
[null,null,"alimenti/mantenimento"]
[null,null,"assegni di cura"]
[null,null,"borse di studio"]
[null,null,"aiuto da terzi"]
[null,null,"reddito per locazione immobili"]
[null,null,"altri redditi (p.e. interessi, prestazioni occasionali...)"]
[null,null,"totale mese",null,null,null,{"$f":"SUM(G95:G111)","v":0}]